Workbook

Sheet PAGE0
G8: Aplicação:
G9: SUBESTAÇÕES AÉREAS UNITÁRIAS COM ATÉ 300kVA DE POTÊNCIA
G14: Aplicação:
G15: MÚLTIPLAS UNIDADES CONSUMIDORAS COM DEMANDA ATÉ 50 kVA
C20: Obs.: Necessário permitir execução de macros para possibilitar algumas funções automáticas.
L21: Versão 1.3

Sheet PAGE0.1
D6: Texto para ser inserido no campo 5 da ART/TRT
D7: Grupo A | H7: MUC
D8: PROJETO DE SUBESTAÇÃO AÉREA COM TRANSFORMADOR DE XXX kVA, COM MONTAGEM ATENDENDO AOS REQUISITOS DA NORMA DIS-NOR-036 DO GRUPO NEOENERGIA, COM POTÊNCIA A SER CONTRATADA DE YYY kW. | H8: PROJETO DE MEDIÇÃO COLETIVA PARA XXX UNIDADES CONSUMIDORAS, CUJA DEMANDA TOTAL DO AGRUPAMENTO É DE YYY kVA, COM MONTAGEM DOS QUADROS ATENDENDO AOS REQUISITOS DA NORMA DIS-NOR-053 DO GRUPO NEOENERGIA.
D14: Informações adicionais
D15: Enviar relatório extraído (em formato PDF), juntamente com a respectiva ART/TRT solicitanto a abertura de nota para os canais correspondentes abaixo:
D17: Grupo A (e-mail): | F17: clientescorporativos.pe@neoenergia.com
D18: Grupo A (portal): | F18: http://clientescorporativos.celpe.com.br
D19: MUC: | F19: projetos.pe@neoenergia.com
D20: Em caso de dúvidas consultar:
D21: analise.projetospe@neoenergia.com
F22: Para copiar texto, click no ícone: | L22: Versão 1.3

Sheet PAGE1
D5: 1 - Dados da Obra
D7: 1.1 - Número da ART/TRT:
D9: 1.2 - Solicitante: | J9: 1.3 - CPF/CNPJ
D12: 1.4 - E-mail Solicitante: | J12: 1.5 - Telefone Solicitante
D15: 1.6 - E-mail Projetista: | J15: 1.7 - Telefone Projetista:
D18: 1.8 - Endereço da obra (conforme ART): | I18: Lat: | L18: Long:
D20: Logradouro: | M20: Nº
D22: CEP: | I22: Bairro:
D24: Cidade: | I24: Comp. / Ref.:
D26: 2 - Referência Elétrica
D28: 2.1 - Informe a distância do Ponto Conexão (PDE) até o limite da propriedade: | N28: Metros
D30: 2.2 - Informe o número da plaqueta que existe no poste da NEOENERGIA mais próximo:
D32: 2.3 - Ou, número do medidor de energia mais próximo:
O35: Versão 1.3

Sheet PAGE2
D5: 3 - Quadros de Distribuição (QD)
D7: 3.1 - Quantidade de unidades consumidoras: | K7: Carga Existente: | M7: =CONCATENATE(SUM(SUMIF(PAGE5!D10:D33,"Existente",PAGE5!J10:J33), SUMIF(PAGE6!D10:D33,"Existente",PAGE6!J10:J33), SUMIF(PAGE7!D10:D34,"Existente",PAGE7!J10:J34),SUMIF(PAGE8!D10:D33,"Existente",PAGE8!J10:J33)), " kW") -> 0 kW
K8: Carga à instalar: | M8: =CONCATENATE(SUM(SUMIF(PAGE5!D10:D33,"Novo",PAGE5!J10:J33), SUMIF(PAGE6!D10:D33,"Novo",PAGE6!J10:J33), SUMIF(PAGE7!D10:D34,"Novo",PAGE7!J10:J34),SUMIF(PAGE8!D10:D33,"Novo",PAGE8!J10:J33)), " kW") -> 0 kW
D9: 3.2 - Dados do(s) Quadro(s) de Distribuição (QD's):
D11: Dados dos Quadros | G11: QDG** | I11: QD - Parcial 1 | K11: QD - Parcial 2 | M11: QD - Parcial 3
D12: Material
D13: Demanda Total (kVA)* | G13: =PAGE8!B17 -> 0
D14: Barramento de Cobre | G14: =IF(G13<=0, "", IF(G13<=40,"19 x 3 mm",IF(AND(G13>40,G13<=50),"25 x 3 mm","Demanda inválida"))) ->  | I14: N/A | K14: N/A | M14: N/A
D15: Disjuntor Geral (A) | G15: =IF(G13<=0, "",IF(AND(G13>0,G13<=50), "80A","Demanda inválida")) ->  | I15: N/A | K15: N/A | M15: N/A
D16: Cabo do Ramal de Entrada (mm²) | G16: =IF(G13<=0, "",IF(AND(G13>0,G13<=50), "16mm² XLPE OU 25mm² PVC","Demanda inválida")) ->  | I16: N/A | K16: N/A | M16: N/A
D17: Diâmetro do Eletroduto | G17: =IF(G13<=0, "",IF(AND(G13>0,G13<=50), "1.1/4", "Demanda inválida")) ->  | I17: N/A | K17: N/A | M17: N/A
D18: Ramal de Ligação Neoenergia | G18: =IF(G13<=0, "",IF(AND(G13>0,G13<=50),"3x25 + 1x25 mm²", "Demanda inválida")) ->  | I18: N/A | K18: N/A | M18: N/A
D20: * Preencher apenas com o número da demanda (não usar letras), pode conter vírgula. O Valor deve ser igual ao declarado na ART (consultar informações tela inicial).
D21: ** O valor da demanda calculada deve ser conforme metodologia do Anexo I da DIS-NOR-053 e a Categoria de Agrupamento conforme Tabela 5 do Anexo II. O ramal de conexão deve ser do tipo aéreo e a edificação deve apresentar apenas um centro de medição, seguindo as limitações de caixas de medição por barramento de cada modelo. Cada consumidor deverá ser cadastrado no seu respectivo quadro em que ficará acoplado o medidor.
G22: =IF(G13<=0,"0",IF(AND(G13>0,PAGE5!P35=5),"1",IF(AND(G13>0,PAGE5!P35=6),"2",IF(AND(G13>0,PAGE5!P35=7),"3","0")))) -> 0 | H22: =G22+1 -> 1 | I22: =IF(I13<=0,"0",IF(AND(I13>0,PAGE6!P35=5),"1",IF(AND(I13>0,PAGE6!P35=6),"2",IF(AND(I13>0,PAGE6!P35=7),"3","0")))) -> 0 | J22: =I22+1 -> 1 | K22: =G13 -> 0 | M22: =IF(M13<=0,"0",IF(AND(M13>0,PAGE8!P35=5),"1",IF(AND(M13>0,PAGE8!P35=6),"2",IF(AND(M13>0,PAGE8!P35=7),"3","0")))) -> 0 | N22: =K22 -> 0
E23: Cadastrar Consumidores: | K23: Cálculo de Demanda Total:
D24: 3.3 - Localização da instalação do QDG:
D26: O QDG está instalado com acesso livre para a via pública? | H26: Justifique:
D29: Caso esteja dentro da edificação, o QDG está instalado limitando-se o comprimento do condutor em 40m do ponto de conexão?
D32: Os locais de instalação dos medidores possuem identificação das unidades com placa 40x20mm em metal ou acrílico com texto em baixo ou alto relevo?
O37: Versão 1.3

Sheet PAGE3
D5: 4 - Informações da instalação
D7: 4.1 - Aterramento
D8: Todos os quadros estão aterrados e conectados através de poços de inspeção, conforme desenho 36 do Anexo III da norma DIS-NOR-053, em malha de terra formada por no mínimo 3 hastes?
D10: É essencial seguir o padrão de aterramento de acordo com a norma para possibilitar a interligação.
D11: Cabo para interligar a malha de aterramento: 35mm² de cobre nú ou 2AWG de aço cobreado.
D13: 4.2 - Caixas de Passagens
D14: Possui Caixa de passagem do ramal de entrada? | I14: As caixas de passagens serão instaladas conforme o desenho 69 do Anexo III da norma DIS-NOR-053?
I16: É essencial seguir o padrão da norma para possibilitar a interligação.
D17: 4.3 - Bomba de Incêndio
D18: É previsto bomba de incêndio para a edificação? | I18: A bomba de incêndio será instalada conforme item 6.20.1 da norma DIS-NOR-053?
I20: É essencial seguir o padrão da norma para possibilitar a interligação.
D21: 4.4 - Condutores
D22: Os condutores são semi-rígidos (classe 2)? | I22: DIS-NOR-053 - Item 6.17.41: No caso da interligação seja executada com condutores com classe de encordoamento 5 (flexível), devem obrigatoriamente ter suas extremidades conectadas utilizando terminais maciços de compressão tipo curto aplicados com ferramenta apropriada e conforme recomendada pelo fabricante.
D26: 4.5 - Terminais
D27: Os terminais usados para conectar os condutores aos barramentos são de pressão (ver imagem)?
D30: É essencial seguir o padrão da norma para possibilitar a interligação.
O34: Versão 1.3

Sheet PAGE4
C2: =IF(PAGE9!F7 = 43, "1", "0") -> 0
D7: Anotações / Informações adicionais.
D19: Limite de 1000 caracteres.
N22: Versão 1.3

Sheet PAGE5
H7: Esse QDG não possui consumidores, pois funcionará como QPGS.
C9: Item | D9: Tipo | E9: Tipo de Ligação | F9: Unidade Consumidora | G9: N° Identif. (Ex.: 1A) | H9: Pavimento | I9: Área (m²) | J9: Carga Insta- lada (kW) | K9: Demanda (kVA) | L9: Disjuntor de Proteção (A) | M9: Ramal de Distribuição (mm²) | N9: Diâmetro do Eletroduto (mm²) | O9: Status
C10: 1 | L10: =IF(OR(ISBLANK(D10),ISBLANK(E10),ISBLANK(F10),ISBLANK(G10),ISBLANK(H10),ISBLANK(I10),ISBLANK(J10),ISBLANK(K10)),"",IF(E10="Monofásico",IF(AND(J10>0,J10<=10),"40",IF(AND(J10>10,J10<=15),"63","")),IF(E10="Trifásico",IF(ISBLANK(K10),"Inserir Demanda",IF(AND(K10>0,K10<=21),"32",IF(AND(K10>21,K10<=26),"40",IF(AND(K10>26,K10<=33),"50","Demanda deve ser 0-33 KVA")))),"Falha, consultar Adminitrador"))) ->  | M10: =IF(OR(ISBLANK(D10), ISBLANK(E10), ISBLANK(F10),ISBLANK(G10),ISBLANK(H10),ISBLANK(I10), ISBLANK(J10),ISBLANK(K10)), "", IF(E10= "Monofásico", IF(AND(J10>0, J10<=10), "CU-6(6)-XLPE/HEPR ou CU-10(10)-PVC", IF(AND(J10>10, J10<=15), "CU-16(16)-XLPE/EPR ou CU-16(16)-PVC", "")), IF(E10= "Trifásico", IF(ISBLANK(K10), "Inserir Demanda", IF(AND(K10>0, K10<=21), "CU-3#6(6)-XLPE/HEPR ou CU-3#6(6)-PVC ", IF(AND(K10>21,K10<=26), "CU-3#6(6)-XLPE/HEPR ou CU-3#10(10)-PVC ", IF(AND(K10>26,K10<=33), "CU-3#10(10)-XLPE/HEPR ou CU-3#16(16)-PVC ", "Demanda deve ser 0-33 KVA")))),"Falha, consultar Adminitrador"))) ->  | N10: =IF(OR(ISBLANK(D10),ISBLANK(E10),ISBLANK(F10),ISBLANK(G10),ISBLANK(H10),ISBLANK(I10),ISBLANK(J10),ISBLANK(K10)),"",IF(E10="Monofásico",IF(AND(J10>0,J10<=10),"1.1/4 pol.",IF(AND(J10>10,J10<=15),"1.1/4 pol.","")),IF(E10="Trifásico",IF(ISBLANK(K10),"Inserir Demanda",IF(AND(K10>0,K10<=21),"1.1/4 pol.",IF(AND(K10>21,K10<=26),"1.1/4 pol.",IF(AND(K10>26,K10<=33),"1.1/4 pol.","Demanda deve ser 0-33 KVA")))),"Falha, consultar Adminitrador"))) ->  | O10: =P10+1 -> 1 | P10: =IF(AND(ISBLANK(E10),ISBLANK(D10), ISBLANK(I10), ISBLANK(F10), ISBLANK(J10)), "0", IF(OR(ISBLANK(E10), ISBLANK(F10), ISBLANK(J10),L10=""), "1", IF(AND(E10= "Trifásico", OR(ISBLANK(F10), ISBLANK(J10), ISBLANK(K10))), "1", "2"))) -> 0
C11: 2 | L11: =IF(OR(ISBLANK(D11),ISBLANK(E11),ISBLANK(F11),ISBLANK(G11),ISBLANK(H11),ISBLANK(I11),ISBLANK(J11),ISBLANK(K11)),"",IF(E11="Monofásico",IF(AND(J11>0,J11<=10),"40",IF(AND(J11>10,J11<=15),"63","")),IF(E11="Trifásico",IF(ISBLANK(K11),"Inserir Demanda",IF(AND(K11>0,K11<=21),"32",IF(AND(K11>21,K11<=26),"40",IF(AND(K11>26,K11<=33),"50","Demanda deve ser 0-33 KVA")))),"Falha, consultar Adminitrador"))) ->  | M11: =IF(OR(ISBLANK(D11), ISBLANK(E11), ISBLANK(F11),ISBLANK(G11),ISBLANK(H11),ISBLANK(I11), ISBLANK(J11),ISBLANK(K11)), "", IF(E11= "Monofásico", IF(AND(J11>0, J11<=10), "CU-6(6)-XLPE/HEPR ou CU-10(10)-PVC", IF(AND(J11>10, J11<=15), "CU-16(16)-XLPE/EPR ou CU-16(16)-PVC", "")), IF(E11= "Trifásico", IF(ISBLANK(K11), "Inserir Demanda", IF(AND(K11>0, K11<=21), "CU-3#6(6)-XLPE/HEPR ou CU-3#6(6)-PVC ", IF(AND(K11>21,K11<=26), "CU-3#6(6)-XLPE/HEPR ou CU-3#10(10)-PVC ", IF(AND(K11>26,K11<=33), "CU-3#10(10)-XLPE/HEPR ou CU-3#16(16)-PVC ", "Demanda deve ser 0-33 KVA")))),"Falha, consultar Adminitrador"))) ->  | N11: =IF(OR(ISBLANK(D11),ISBLANK(E11),ISBLANK(F11),ISBLANK(G11),ISBLANK(H11),ISBLANK(I11),ISBLANK(J11),ISBLANK(K11)),"",IF(E11="Monofásico",IF(AND(J11>0,J11<=10),"1.1/4 pol.",IF(AND(J11>10,J11<=15),"1.1/4 pol.","")),IF(E11="Trifásico",IF(ISBLANK(K11),"Inserir Demanda",IF(AND(K11>0,K11<=21),"1.1/4 pol.",IF(AND(K11>21,K11<=26),"1.1/4 pol.",IF(AND(K11>26,K11<=33),"1.1/4 pol.","Demanda deve ser 0-33 KVA")))),"Falha, consultar Adminitrador"))) ->  | O11: =P11+1 -> 1 | P11: =IF(AND(ISBLANK(E11),ISBLANK(D11), ISBLANK(I11), ISBLANK(F11), ISBLANK(J11)), "0", IF(OR(ISBLANK(E11), ISBLANK(F11), ISBLANK(J11),L11=""), "1", IF(AND(E11= "Trifásico", OR(ISBLANK(F11), ISBLANK(J11), ISBLANK(K11))), "1", "2"))) -> 0
C12: 3 | O12: 1 | P12: 0
C13: 4 | O13: 1 | P13: 0
C14: 5 | O14: 1 | P14: 0
C15: 6 | O15: 1 | P15: 0
C16: 7 | O16: 1 | P16: 0
C17: 8 | O17: 1 | P17: 0
C18: 9 | O18: 1 | P18: 0
C19: 10 | O19: 1 | P19: 0
C20: 11 | O20: 1 | P20: 0
C21: 12 | O21: 1 | P21: 0
C22: 13 | O22: 1 | P22: 0
C23: 14 | O23: 1 | P23: 0
C24: 15 | O24: 1 | P24: 0
C25: 16 | O25: 1 | P25: 0
C26: 17 | O26: 1 | P26: 0
C27: 18 | O27: 1 | P27: 0
C28: 19 | O28: 1 | P28: 0
C29: 20 | O29: 1 | P29: 0
C30: 21 | O30: 1 | P30: 0
C31: 22 | O31: 1 | P31: 0
C32: 23 | O32: 1 | P32: 0
C33: 24 | O33: 1 | P33: 0
C34: =IF(ISBLANK(PAGE2!G12),"ATENÇÃO: PREENCHER MATERIAL DO QUADRO NA PAGINA ANTERIOR.",IF(PAGE2!G12="POLICARBONATO","",IF(PAGE2!G12="METALICO",IF(AND(COUNTIF(E10:E33,"Trifásico")<1,COUNTIF(PAGE5!E10:E33,"Monofásico")<=19),"",IF(AND(COUNTIF(E10:E33,"Trifásico")=1,COUNTIF(PAGE5!E10:E33,"Monofásico")<=18),"",IF(AND(COUNTIF(E10:E33,"Trifásico")>1,COUNTBLANK(E10:E33)>=11),"","ATENÇÃO: QUADRO MODELO METÁLICO, EXCEDIDA A CAPACIDADE DE MEDIDORES PERMITIDOS. VERIFICAR NORMA DIS-NOR-053 ONDE INFORMA A DISPOSIÇÃO DOS MEDIDORES NOS TIPOS DE QUADROS.")))))) -> ATENÇÃO: PREENCHER MATERIAL DO QUADRO NA PAGINA ANTERIOR. | O34: 5 | P34: =IF(PAGE10!A1=TRUE, "2", IF(OR(B37= "1", P10= "1",P11= "1",P12= "1",P13= "1",P14= "1",P15= "1",P16= "1",P17= "1",P18= "1",P19= "1",P20= "1",P21= "1",P22= "1",P23= "1",P24= "1",P25= "1",P26= "1",P27= "1",P28= "1",P29= "1",P30= "1",P31= "1",P32= "1",P33= "1"), "1", IF(AND(P10= "0", P11= "0",P12= "0",P13= "0",P14= "0",P15= "0",P16= "0",P17= "0",P18= "0",P19= "0",P20= "0",P21= "0",P22= "0",P23= "0",P24= "0",P25= "0",P26= "0",P27= "0",P28= "0",P29= "0",P30= "0",P31= "0",P32= "0",P33= "0"),"0","2"))) -> 1
K35: Situação do documento: | M35: Falha ao Gerar Formulário | P35: =P34+O34 -> 6
K36: Situação do documento: | M36: Formulário Preenchido com sucesso
B37: =IF(C34="","2","1") -> 1

Sheet PAGE6
C9: Item | D9: Tipo | E9: Tipo de Ligação | F9: Unidade Consumidora | G9: N° Identif. (Ex.: 1A) | H9: Pavimento | I9: Área (m²) | J9: Carga Insta- lada (kW) | K9: Demanda (kVA) | L9: Disjuntor de Proteção (A) | M9: Ramal de Distribuição (mm²) | N9: Diâmetro do Eletroduto (mm²) | O9: Status
C10: 1 | L10: =IF(OR(ISBLANK(D10),ISBLANK(E10),ISBLANK(F10),ISBLANK(G10), ISBLANK(H10), ISBLANK(I10), ISBLANK(J10), ISBLANK(K10)), "", IF(E10= "Monofásico", IF(AND(J10>0, J10<=3), "15 ou 16", IF(AND(J10>3, J10<=8), "40", IF(AND(J10>8, J10<=10), "50", IF(AND(J10>10, J10<=15), "70", "")))), IF(E10= "Trifásico", IF(ISBLANK(K10), "Inserir Demanda", IF(AND(K10>0, K10<=25), "40", IF(AND(K10>25, K10<=32), "60 ou 63", "Demanda deve ser 0-32 KVA"))), "Falha, consultar Adminitrador"))) ->  | M10: =IF(OR(ISBLANK(D10), ISBLANK(E10), ISBLANK(F10),ISBLANK(G10),ISBLANK(H10),ISBLANK(I10), ISBLANK(J10),ISBLANK(K10)), "", IF(E10= "Monofásico", IF(AND(J10>0, J10<=8), "CU-6(6)-XLPE/EPR ou CU-6(6)-PVC", IF(AND(J10>8, J10<=10), "CU-10(10)-XLPE/EPR ou CU-10(10)-PVC", IF(AND(J10>10, J10<=15), "CU-16(16)-XLPE/EPR ou CU-16(16)-PVC", ""))), IF(E10= "Trifásico", IF(ISBLANK(K10), "Inserir Demanda", IF(AND(K10>0, K10<=25), "CU-10(10)-XLPE/EPR ou CU-10(10)-PVC ", IF(AND(K10>25, K10<=32), "CU-16(16)-XLPE/EPR ou CU-16(16)-PVC ", "Demanda deve ser 0-32 KVA"))), "Falha, consultar Adminitrador"))) ->  | N10: =IF(OR(ISBLANK(D10), ISBLANK(E10),ISBLANK(F10),ISBLANK(G10), ISBLANK(H10),ISBLANK(I10), ISBLANK(J10),ISBLANK(K10)), "", IF(E10= "Monofásico", IF(AND(J10>0, J10<=8), "25 PVC ou 25 AÇO", IF(AND(J10>8, J10<=15), "25 PVC ou 25 AÇO", "")), IF(E10= "Trifásico", IF(ISBLANK(K10), "Inserir Demanda", IF(AND(K10>0, K10<=32), "40 PCV ou 32 AÇO", "Demanda deve ser 0-32 KVA")), "Falha, consultar Adminitrador"))) ->  | O10: =P10+1 -> 1 | P10: =IF(AND(ISBLANK(E10),ISBLANK(D10), ISBLANK(I10), ISBLANK(F10), ISBLANK(J10)), "0", IF(OR(ISBLANK(E10), ISBLANK(F10), ISBLANK(J10),L10=""), "1", IF(AND(E10= "Trifásico", OR(ISBLANK(F10), ISBLANK(J10), ISBLANK(K10))), "1", "2"))) -> 0
C11: 2 | L11: =IF(OR(ISBLANK(D11),ISBLANK(E11),ISBLANK(F11),ISBLANK(G11), ISBLANK(H11), ISBLANK(I11), ISBLANK(J11), ISBLANK(K11)), "", IF(E11= "Monofásico", IF(AND(J11>0, J11<=3), "15 ou 16", IF(AND(J11>3, J11<=8), "40", IF(AND(J11>8, J11<=10), "50", IF(AND(J11>10, J11<=15), "70", "")))), IF(E11= "Trifásico", IF(ISBLANK(K11), "Inserir Demanda", IF(AND(K11>0, K11<=25), "40", IF(AND(K11>25, K11<=32), "60 ou 63", "Demanda deve ser 0-32 KVA"))), "Falha, consultar Adminitrador"))) ->  | M11: =IF(OR(ISBLANK(D11), ISBLANK(E11), ISBLANK(F11),ISBLANK(G11),ISBLANK(H11),ISBLANK(I11), ISBLANK(J11),ISBLANK(K11)), "", IF(E11= "Monofásico", IF(AND(J11>0, J11<=8), "CU-6(6)-XLPE/EPR ou CU-6(6)-PVC", IF(AND(J11>8, J11<=10), "CU-10(10)-XLPE/EPR ou CU-10(10)-PVC", IF(AND(J11>10, J11<=15), "CU-16(16)-XLPE/EPR ou CU-16(16)-PVC", ""))), IF(E11= "Trifásico", IF(ISBLANK(K11), "Inserir Demanda", IF(AND(K11>0, K11<=25), "CU-10(10)-XLPE/EPR ou CU-10(10)-PVC ", IF(AND(K11>25, K11<=32), "CU-16(16)-XLPE/EPR ou CU-16(16)-PVC ", "Demanda deve ser 0-32 KVA"))), "Falha, consultar Adminitrador"))) ->  | N11: =IF(OR(ISBLANK(D11), ISBLANK(E11),ISBLANK(F11),ISBLANK(G11), ISBLANK(H11),ISBLANK(I11), ISBLANK(J11),ISBLANK(K11)), "", IF(E11= "Monofásico", IF(AND(J11>0, J11<=8), "25 PVC ou 25 AÇO", IF(AND(J11>8, J11<=15), "25 PVC ou 25 AÇO", "")), IF(E11= "Trifásico", IF(ISBLANK(K11), "Inserir Demanda", IF(AND(K11>0, K11<=32), "40 PCV ou 32 AÇO", "Demanda deve ser 0-32 KVA")), "Falha, consultar Adminitrador"))) ->  | O11: =P11+1 -> 1 | P11: =IF(AND(ISBLANK(E11),ISBLANK(D11), ISBLANK(I11), ISBLANK(F11), ISBLANK(J11)), "0", IF(OR(ISBLANK(E11), ISBLANK(F11), ISBLANK(J11),L11=""), "1", IF(AND(E11= "Trifásico", OR(ISBLANK(F11), ISBLANK(J11), ISBLANK(K11))), "1", "2"))) -> 0
C12: 3 | O12: 1 | P12: 0
C13: 4 | O13: 1 | P13: 0
C14: 5 | O14: 1 | P14: 0
C15: 6 | O15: 1 | P15: 0
C16: 7 | O16: 1 | P16: 0
C17: 8 | O17: 1 | P17: 0
C18: 9 | O18: 1 | P18: 0
C19: 10 | O19: 1 | P19: 0
C20: 11 | O20: 1 | P20: 0
C21: 12 | O21: 1 | P21: 0
C22: 13 | O22: 1 | P22: 0
C23: 14 | O23: 1 | P23: 0
C24: 15 | O24: 1 | P24: 0
C25: 16 | O25: 1 | P25: 0
C26: 17 | O26: 1 | P26: 0
C27: 18 | O27: 1 | P27: 0
C28: 19 | O28: 1 | P28: 0
C29: 20 | O29: 1 | P29: 0
C30: 21 | O30: 1 | P30: 0
C31: 22 | O31: 1 | P31: 0
C32: 23 | O32: 1 | P32: 0
C33: 24 | O33: 1 | P33: 0
C34: =IF(ISBLANK(PAGE2!I12),"ATENÇÃO: PREENCHER MATERIAL DO QUADRO NA PAGINA ANTERIOR.",IF(PAGE2!I12="POLICARBONATO","",IF(PAGE2!I12="METALICO",IF(AND(COUNTIF(E10:E33,"Trifásico")<1,COUNTIF(PAGE5!E10:E33,"Monofásico")<=19),"",IF(AND(COUNTIF(E10:E33,"Trifásico")=1,COUNTIF(PAGE5!E10:E33,"Monofásico")<=18),"",IF(AND(COUNTIF(E10:E33,"Trifásico")>1,COUNTBLANK(E10:E33)>=11),"","ATENÇÃO: QUADRO MODELO METÁLICO, EXCEDIDA A CAPACIDADE DE MEDIDORES PERMITIDOS. FAVOR VERIFICAR NORMA TAL, ONDE INFORMA A DISPOSIÇÃO DOS MEDIDORES NOS TIPOS DE QUADROS.")))))) -> ATENÇÃO: PREENCHER MATERIAL DO QUADRO NA PAGINA ANTERIOR. | O34: 5 | P34: =IF(OR(B37= "1",P10= "1",P11= "1",P12= "1",P13= "1",P14= "1",P15= "1",P16= "1",P17= "1",P18= "1",P19= "1",P20= "1",P21= "1",P22= "1",P23= "1",P24= "1",P25= "1",P26= "1",P27= "1",P28= "1",P29= "1",P30= "1",P31= "1",P32= "1",P33= "1"), "1", IF(AND(P10= "0", P11= "0",P12= "0",P13= "0",P14= "0",P15= "0",P16= "0",P17= "0",P18= "0",P19= "0",P20= "0",P21= "0",P22= "0",P23= "0",P24= "0",P25= "0",P26= "0",P27= "0",P28= "0",P29= "0",P30= "0",P31= "0",P32= "0",P33= "0"),"0","2")) -> 1
K35: Situação do documento: | M35: Falha ao Gerar Formulário | P35: =P34+O34 -> 6
K36: Situação do documento: | M36: Formulário Preenchido com sucesso
B37: =IF(C34="","2","1") -> 1

Sheet PAGE7
C9: Item | D9: Tipo | E9: Tipo de Ligação | F9: Unidade Consumidora | G9: N° Identif. (Ex.: 1A) | H9: Pavimento | I9: Área (m²) | J9: Carga Insta- lada (kW) | K9: Demanda (kVA) | L9: Disjuntor de Proteção (A) | M9: Ramal de Distribuição (mm²) | N9: Diâmetro do Eletroduto (mm²) | O9: Status
C10: 1 | L10: =IF(OR(ISBLANK(D10),ISBLANK(E10),ISBLANK(F10),ISBLANK(G10), ISBLANK(H10), ISBLANK(I10), ISBLANK(J10), ISBLANK(K10)), "", IF(E10= "Monofásico", IF(AND(J10>0, J10<=3), "15 ou 16", IF(AND(J10>3, J10<=8), "40", IF(AND(J10>8, J10<=10), "50", IF(AND(J10>10, J10<=15), "70", "")))), IF(E10= "Trifásico", IF(ISBLANK(K10), "Inserir Demanda", IF(AND(K10>0, K10<=25), "40", IF(AND(K10>25, K10<=32), "60 ou 63", "Demanda deve ser 0-32 KVA"))), "Falha, consultar Adminitrador"))) ->  | M10: =IF(OR(ISBLANK(D10), ISBLANK(E10), ISBLANK(F10),ISBLANK(G10),ISBLANK(H10),ISBLANK(I10), ISBLANK(J10),ISBLANK(K10)), "", IF(E10= "Monofásico", IF(AND(J10>0, J10<=8), "CU-6(6)-XLPE/EPR ou CU-6(6)-PVC", IF(AND(J10>8, J10<=10), "CU-10(10)-XLPE/EPR ou CU-10(10)-PVC", IF(AND(J10>10, J10<=15), "CU-16(16)-XLPE/EPR ou CU-16(16)-PVC", ""))), IF(E10= "Trifásico", IF(ISBLANK(K10), "Inserir Demanda", IF(AND(K10>0, K10<=25), "CU-10(10)-XLPE/EPR ou CU-10(10)-PVC ", IF(AND(K10>25, K10<=32), "CU-16(16)-XLPE/EPR ou CU-16(16)-PVC ", "Demanda deve ser 0-32 KVA"))), "Falha, consultar Adminitrador"))) ->  | N10: =IF(OR(ISBLANK(D10), ISBLANK(E10),ISBLANK(F10),ISBLANK(G10), ISBLANK(H10),ISBLANK(I10), ISBLANK(J10),ISBLANK(K10)), "", IF(E10= "Monofásico", IF(AND(J10>0, J10<=8), "25 PVC ou 25 AÇO", IF(AND(J10>8, J10<=15), "25 PVC ou 25 AÇO", "")), IF(E10= "Trifásico", IF(ISBLANK(K10), "Inserir Demanda", IF(AND(K10>0, K10<=32), "40 PCV ou 32 AÇO", "Demanda deve ser 0-32 KVA")), "Falha, consultar Adminitrador"))) ->  | O10: =P10+1 -> 1 | P10: =IF(AND(ISBLANK(E10),ISBLANK(D10), ISBLANK(I10), ISBLANK(F10), ISBLANK(J10)), "0", IF(OR(ISBLANK(E10), ISBLANK(F10), ISBLANK(J10),L10=""), "1", IF(AND(E10= "Trifásico", OR(ISBLANK(F10), ISBLANK(J10), ISBLANK(K10))), "1", "2"))) -> 0
C11: 2 | L11: =IF(OR(ISBLANK(D11),ISBLANK(E11),ISBLANK(F11),ISBLANK(G11), ISBLANK(H11), ISBLANK(I11), ISBLANK(J11), ISBLANK(K11)), "", IF(E11= "Monofásico", IF(AND(J11>0, J11<=3), "15 ou 16", IF(AND(J11>3, J11<=8), "40", IF(AND(J11>8, J11<=10), "50", IF(AND(J11>10, J11<=15), "70", "")))), IF(E11= "Trifásico", IF(ISBLANK(K11), "Inserir Demanda", IF(AND(K11>0, K11<=25), "40", IF(AND(K11>25, K11<=32), "60 ou 63", "Demanda deve ser 0-32 KVA"))), "Falha, consultar Adminitrador"))) ->  | M11: =IF(OR(ISBLANK(D11), ISBLANK(E11), ISBLANK(F11),ISBLANK(G11),ISBLANK(H11),ISBLANK(I11), ISBLANK(J11),ISBLANK(K11)), "", IF(E11= "Monofásico", IF(AND(J11>0, J11<=8), "CU-6(6)-XLPE/EPR ou CU-6(6)-PVC", IF(AND(J11>8, J11<=10), "CU-10(10)-XLPE/EPR ou CU-10(10)-PVC", IF(AND(J11>10, J11<=15), "CU-16(16)-XLPE/EPR ou CU-16(16)-PVC", ""))), IF(E11= "Trifásico", IF(ISBLANK(K11), "Inserir Demanda", IF(AND(K11>0, K11<=25), "CU-10(10)-XLPE/EPR ou CU-10(10)-PVC ", IF(AND(K11>25, K11<=32), "CU-16(16)-XLPE/EPR ou CU-16(16)-PVC ", "Demanda deve ser 0-32 KVA"))), "Falha, consultar Adminitrador"))) ->  | N11: =IF(OR(ISBLANK(D11), ISBLANK(E11),ISBLANK(F11),ISBLANK(G11), ISBLANK(H11),ISBLANK(I11), ISBLANK(J11),ISBLANK(K11)), "", IF(E11= "Monofásico", IF(AND(J11>0, J11<=8), "25 PVC ou 25 AÇO", IF(AND(J11>8, J11<=15), "25 PVC ou 25 AÇO", "")), IF(E11= "Trifásico", IF(ISBLANK(K11), "Inserir Demanda", IF(AND(K11>0, K11<=32), "40 PCV ou 32 AÇO", "Demanda deve ser 0-32 KVA")), "Falha, consultar Adminitrador"))) ->  | O11: =P11+1 -> 1 | P11: =IF(AND(ISBLANK(E11),ISBLANK(D11), ISBLANK(I11), ISBLANK(F11), ISBLANK(J11)), "0", IF(OR(ISBLANK(E11), ISBLANK(F11), ISBLANK(J11),L11=""), "1", IF(AND(E11= "Trifásico", OR(ISBLANK(F11), ISBLANK(J11), ISBLANK(K11))), "1", "2"))) -> 0
C12: 3 | O12: 1 | P12: 0
C13: 4 | O13: 1 | P13: 0
C14: 5 | O14: 1 | P14: 0
C15: 6 | O15: 1 | P15: 0
C16: 7 | O16: 1 | P16: 0
C17: 8 | O17: 1 | P17: 0
C18: 9 | O18: 1 | P18: 0
C19: 10 | O19: 1 | P19: 0
C20: 11 | O20: 1 | P20: 0
C21: 12 | O21: 1 | P21: 0
C22: 13 | O22: 1 | P22: 0
C23: 14 | O23: 1 | P23: 0
C24: 15 | O24: 1 | P24: 0
C25: 16 | O25: 1 | P25: 0
C26: 17 | O26: 1 | P26: 0
C27: 18 | O27: 1 | P27: 0
C28: 19 | O28: 1 | P28: 0
C29: 20 | O29: 1 | P29: 0
C30: 21 | O30: 1 | P30: 0
C31: 22 | O31: 1 | P31: 0
C32: 23 | O32: 1 | P32: 0
C33: 24 | O33: 1 | P33: 0
C34: =IF(ISBLANK(PAGE2!K12),"ATENÇÃO: PREENCHER MATERIAL DO QUADRO NA PAGINA ANTERIOR.",IF(PAGE2!K12="POLICARBONATO","",IF(PAGE2!K12="METALICO",IF(AND(COUNTIF(E10:E33,"Trifásico")<1,COUNTIF(PAGE5!E10:E33,"Monofásico")<=19),"",IF(AND(COUNTIF(E10:E33,"Trifásico")=1,COUNTIF(PAGE5!E10:E33,"Monofásico")<=18),"",IF(AND(COUNTIF(E10:E33,"Trifásico")>1,COUNTBLANK(E10:E33)>=11),"","ATENÇÃO: QUADRO MODELO METÁLICO, EXCEDIDA A CAPACIDADE DE MEDIDORES PERMITIDOS. FAVOR VERIFICAR NORMA TAL, ONDE INFORMA A DISPOSIÇÃO DOS MEDIDORES NOS TIPOS DE QUADROS.")))))) -> ATENÇÃO: PREENCHER MATERIAL DO QUADRO NA PAGINA ANTERIOR. | O34: 5 | P34: =IF(OR(B37= "1",P10= "1",P11= "1",P12= "1",P13= "1",P14= "1",P15= "1",P16= "1",P17= "1",P18= "1",P19= "1",P20= "1",P21= "1",P22= "1",P23= "1",P24= "1",P25= "1",P26= "1",P27= "1",P28= "1",P29= "1",P30= "1",P31= "1",P32= "1",P33= "1"), "1", IF(AND(P10= "0", P11= "0",P12= "0",P13= "0",P14= "0",P15= "0",P16= "0",P17= "0",P18= "0",P19= "0",P20= "0",P21= "0",P22= "0",P23= "0",P24= "0",P25= "0",P26= "0",P27= "0",P28= "0",P29= "0",P30= "0",P31= "0",P32= "0",P33= "0"),"0","2")) -> 1
K35: Situação do documento: | M35: Falha ao Gerar Formulário | P35: =P34+O34 -> 6
K36: Situação do documento: | M36: Formulário Preenchido com sucesso
B37: =IF(C34="","2","1") -> 1

Sheet PAGE9
E6: Total de itens: | F6: 40
E7: Conforme | F7: =COUNTIF(H11:H53,3) -> 9
E8: Inconforme | F8: =COUNTIF(H11:H52, 2) -> 33
C10: Item | D10: Campo | E10: Local | F10: Situação | G10: Status
C11: 1 | D11: ART | E11: PAG_DADOS_OBRA | F11: =IF(ISBLANK(PAGE1!G7), "VAZIO", "PREENCHIDO") -> VAZIO | G11: Ver | H11: =I11+1 -> 2 | I11: =IF(F11="VAZIO", "1", "2") -> 1
C12: 2 | D12: SOLICITANTE | E12: PAG_DADOS_OBRA | F12: =IF(ISBLANK(PAGE1!D10), "VAZIO", "PREENCHIDO") -> VAZIO | G12: Ver | H12: =I12+1 -> 2 | I12: =IF(F12="VAZIO", "1", "2") -> 1
C13: 3 | D13: CPF_CNPJ | E13: PAG_DADOS_OBRA | F13: =IF(ISBLANK(PAGE1!J10), "VAZIO", "PREENCHIDO") -> VAZIO | G13: Ver | H13: 2 | I13: 1
C14: 4 | D14: EMAIL_SOLICITANTE | E14: PAG_DADOS_OBRA | F14: =IF(ISBLANK(PAGE1!D13), "VAZIO", "PREENCHIDO") -> VAZIO | G14: Ver | H14: 2 | I14: 1
C15: 5 | D15: EMAIL_PROJETISTA | E15: PAG_DADOS_OBRA | F15: =IF(ISBLANK(PAGE1!J13), "VAZIO", "PREENCHIDO") -> VAZIO | G15: Ver | H15: 2 | I15: 1
C16: 6 | D16: TELEFONE_SOLICITANTE | E16: PAG_DADOS_OBRA | F16: =IF(ISBLANK(PAGE1!D16), "VAZIO", "PREENCHIDO") -> VAZIO | G16: Ver | H16: 2 | I16: 1
C17: 7 | D17: TELEFONE_PROJETISTA | E17: PAG_DADOS_OBRA | F17: =IF(ISBLANK(PAGE1!J16), "VAZIO", "PREENCHIDO") -> VAZIO | G17: Ver | H17: 2 | I17: 1
C18: 8 | D18: END_LOGRADOURO | E18: PAG_DADOS_OBRA | F18: =IF(ISBLANK(PAGE1!F20), "VAZIO", "PREENCHIDO") -> VAZIO | G18: Ver | H18: 2 | I18: 1
C19: 9 | D19: END_N_CASA | E19: PAG_DADOS_OBRA | F19: =IF(ISBLANK(PAGE1!N20), "VAZIO", "PREENCHIDO") -> VAZIO | G19: Ver | H19: 2 | I19: 1
C20: 10 | D20: END_CEP | E20: PAG_DADOS_OBRA | F20: =IF(ISBLANK(PAGE1!E22), "VAZIO", "PREENCHIDO") -> VAZIO | G20: Ver | H20: 2 | I20: 1
C21: 11 | D21: END_BAIRRO | E21: PAG_DADOS_OBRA | F21: =IF(ISBLANK(PAGE1!J22), "VAZIO", "PREENCHIDO") -> VAZIO | G21: Ver | H21: 2 | I21: 1
C22: 12 | D22: END_CIDADE | E22: PAG_DADOS_OBRA | F22: =IF(ISBLANK(PAGE1!E24), "VAZIO", "PREENCHIDO") -> VAZIO | G22: Ver | H22: 2 | I22: 1
C23: 13 | D23: END_COMPLEMENTO | E23: PAG_DADOS_OBRA | F23: =IF(ISBLANK(PAGE1!K24), "VAZIO", "PREENCHIDO") -> VAZIO | G23: Ver | H23: 2 | I23: =IF(F23="VAZIO", "1", "2") -> 1
C24: 14 | D24: LATITUDE | E24: PAG_DADOS_OBRA | F24: =IF(ISBLANK(PAGE1!M18), "VAZIO", "PREENCHIDO") -> VAZIO | G24: Ver | H24: 2 | I24: =IF(F24="VAZIO", "1", "2") -> 1
C25: 15 | D25: LONGITUDE | E25: PAG_DADOS_OBRA | F25: =IF(ISBLANK(PAGE1!M18), "VAZIO", "PREENCHIDO") -> VAZIO | G25: Ver | H25: 2 | I25: 1
C26: 16 | D26: DISTANCIA_POSTE_CONCESSIONÁRIA | E26: PAG_DADOS_OBRA | F26: =IF(ISBLANK(PAGE1!M28), "VAZIO", "PREENCHIDO") -> VAZIO | G26: Ver | H26: 2 | I26: =IF(F26="VAZIO", "1", "2") -> 1
C27: 17 | D27: BARRAMENTO_CONCESSIONÁRIA | E27: PAG_DADOS_OBRA | F27: =IF(ISBLANK(PAGE1!M30), "VAZIO", "PREENCHIDO") -> VAZIO | G27: Ver | H27: 2 | I27: =IF(AND(F28="VAZIO",F27="VAZIO"), "1", "2") -> 1
C28: 18 | D28: MEDIDOR_VIZINHO | E28: PAG_DADOS_OBRA | F28: =IF(ISBLANK(PAGE1!J32), "VAZIO", "PREENCHIDO") -> VAZIO | G28: Ver | H28: 2 | I28: =IF(AND(F28="VAZIO",F27="VAZIO"), "1", "2") -> 1
C29: 19 | D29: QUANTIDADE_CONSUMIDORES | E29: PAG_QDG | F29: =IF(ISBLANK(PAGE2!I7), "VAZIO", IF(PAGE2!I7= SUM(COUNTIF(PAGE5!P10:P33,"2"),COUNTIF(PAGE6!P10:P33,"2"), COUNTIF(PAGE7!P10:P33,"2"), COUNTIF(PAGE8!P10:P33,"2")),"PREENCHIDO CORRETO","QUANT. DIFERENTE DO DECLARADO")) -> VAZIO | G29: Ver | H29: 2 | I29: =IF(F29="VAZIO", "1",IF(F29="PREENCHIDO CORRETO", "2", IF(F29="QUANT. DIFERENTE DO DECLARADO","1"))) -> 1
C30: 20 | D30: MATERIAL_QDG | E30: PAG_QDG | F30: =IF(ISBLANK(PAGE2!G12), "VAZIO", "PREENCHIDO") -> VAZIO | G30: Ver | H30: 2 | I30: 1
C31: 21 | D31: MATERIAL_QD_PARCIAL_1 | E31: PAG_QDG | F31: =IF(ISBLANK(PAGE2!I12), "VAZIO", "PREENCHIDO") -> VAZIO | G31: Ver | H31: 3 | I31: =IF(F31="VAZIO", "2", "2") -> 2
C32: 22 | D32: MATERIAL_QD_PARCIAL_2 | E32: PAG_QDG | F32: =IF(ISBLANK(PAGE2!K12), "VAZIO", "PREENCHIDO") -> VAZIO | G32: Ver | H32: 3 | I32: =IF(F32="VAZIO", "2", "2") -> 2
C33: 23 | D33: MATERIAL_QD_PARCIAL_3 | E33: PAG_QDG | F33: =IF(ISBLANK(PAGE2!M12), "VAZIO", "PREENCHIDO") -> VAZIO | G33: Ver | H33: 3 | I33: =IF(F33="VAZIO", "2", "2") -> 2
C34: 24 | D34: DEMANDA_QDG | E34: PAG_QDG | F34: =IF(OR(ISBLANK(PAGE2!G13),PAGE2!G13=0), "VAZIO", "PREENCHIDO") -> VAZIO | G34: Ver | H34: =I34+1 -> 2 | I34: =IF(F34="VAZIO", "1", "2") -> 1
C35: 25 | D35: DEMANDA_QD_PARCIAL_1 | E35: PAG_QDG | F35: =IF(ISBLANK(PAGE2!I13), "VAZIO", "PREENCHIDO") -> VAZIO | G35: Ver | H35: 3 | I35: =IF(F35="VAZIO", "2", "2") -> 2
C36: 26 | D36: DEMANDA_QD_PARCIAL_2 | E36: PAG_QDG | F36: =IF(ISBLANK(PAGE2!K13), "VAZIO", "PREENCHIDO") -> VAZIO | G36: Ver | H36: 3 | I36: =IF(F36="VAZIO", "2", "2") -> 2
C37: 27 | D37: DEMANDA_QD_PARCIAL_3 | E37: PAG_QDG | F37: =IF(ISBLANK(PAGE2!M13), "VAZIO", "PREENCHIDO") -> VAZIO | G37: Ver | H37: 3 | I37: 2
C38: 28 | D38: CONSUMIDOR_QDG | E38: PAG_QDG | F38: =IF(PAGE2!H22= 1,"VAZIO", IF( PAGE2!H22=2, "INCOMPLETO", IF(PAGE2!H22= 3, "PREENCHIMENTO INCORRETO", IF(PAGE2!H22 = 4, "PREENCHIMENTO CORRETO", "INFO NÃO LOCALIZADA")))) -> VAZIO | G38: Ver | H38: 2 | I38: =IF(OR(F38= "VAZIO", F38= "INCOMPLETO", F38 = "PREENCHIMENTO INCORRETO"),"1", IF(F38= "PREENCHIMENTO CORRETO", "2", "0")) -> 1
C39: 29 | D39: CONSUMIDOR_QD_PARCIAL_1 | E39: PAG_QDG | F39: =IF(PAGE2!J22= 1,"VAZIO", IF( PAGE2!J22=2, "INCOMPLETO", IF(PAGE2!J22= 3, "PREENCHIMENTO INCORRETO", IF(PAGE2!J22 = 4, "PREENCHIMENTO CORRETO", "INFO NÃO LOCALIZADA")))) -> VAZIO | G39: Ver | H39: 3 | I39: =IF(F39= "VAZIO", "2", IF(OR(F39= "INCOMPLETO", F39 = "PREENCHIMENTO INCORRETO"),"2", IF(F39= "PREENCHIMENTO CORRETO", "2", "0"))) -> 2
C40: 30 | D40: CONSUMIDOR_QD_PARCIAL_2 | E40: PAG_QDG | F40: =IF(PAGE2!J23= 1,"VAZIO", IF( PAGE2!J23=2, "INCOMPLETO", IF(PAGE2!J23= 3, "PREENCHIMENTO INCORRETO", IF(PAGE2!J23 = 4, "PREENCHIMENTO CORRETO", "INFO NÃO LOCALIZADA")))) -> INFO NÃO LOCALIZADA | G40: Ver | H40: 3 | I40: =IF(F40= "VAZIO", "2", IF(OR(F40= "INCOMPLETO", F40 = "PREENCHIMENTO INCORRETO"),"2", IF(F40= "PREENCHIMENTO CORRETO", "2", "0"))) -> 0
C41: 31 | D41: CONSUMIDOR_QD_PARCIAL_3 | E41: PAG_QDG | F41: =IF(PAGE2!N22= 1,"VAZIO", IF( PAGE2!N22=2, "INCOMPLETO", IF(PAGE2!N22= 3, "PREENCHIMENTO INCORRETO", IF(PAGE2!N22 = 4, "PREENCHIMENTO CORRETO", "INFO NÃO LOCALIZADA")))) -> INFO NÃO LOCALIZADA | G41: Ver | H41: 3 | I41: =IF(F41= "VAZIO", "2", IF(OR(F41= "INCOMPLETO", F41 = "PREENCHIMENTO INCORRETO"),"2", IF(F41= "PREENCHIMENTO CORRETO", "2", "0"))) -> 0
C42: 32 | D42: POSICAO_QDG | E42: PAG_QDG | F42: =IF(ISBLANK(PAGE2!G26), "VAZIO", IF(PAGE2!G26= "SIM", "PREENCHIDO COM SIM", IF(PAGE2!G26= "NÃO", "PREENCHIDO COM NÃO", "INFO NÃO LOCALIZADA"))) -> VAZIO | G42: Ver | H42: 2 | I42: =IF(F42="VAZIO", "1", IF(F42= "PREENCHIDO COM SIM", "2", IF(AND(F42= "PREENCHIDO COM NÃO",F43= "JUSTIFICADO"), "2", "1"))) -> 1
C43: 33 | D43: JUSTIFICATIVA_POSICAO | E43: PAG_QDG | F43: =IF(ISBLANK(PAGE2!J26), "VAZIO", "JUSTIFICADO") -> VAZIO | G43: Ver | H43: 2 | I43: =IF(AND(F42= "PREENCHIDO COM NÃO",F43= "JUSTIFICADO"), "2",IF(AND(F42= "PREENCHIDO COM SIM", F43= "VAZIO"),"2", "1")) -> 1
C44: 34 | D44: LIMITE_DISTANCIA_QDG | E44: PAG_QDG | F44: =IF(ISBLANK(PAGE2!L29), "VAZIO", IF(PAGE2!L29= "SIM", "PREENCHIDO COM SIM", IF(PAGE2!L29= "NÃO", "PREENCHIDO COM NÃO", "N/A"))) -> VAZIO | G44: Ver | H44: 2 | I44: =IF(AND(OR(F42= "PREENCHIDO COM NÃO",F42= "VAZIO"), OR(F44= "PREENCHIDO COM NÃO",F44= "VAZIO")), "1", IF(F42= "VAZIO", "1","2")) -> 1
C45: 35 | D45: IDENTIFICACAO_LOCAL_MEDIDOR | E45: PAG_QDG | F45: =IF(ISBLANK(PAGE2!L32), "VAZIO", IF(PAGE2!L32= "SIM", "PREENCHIDO COM SIM", IF(PAGE2!L32= "NÃO", "PREENCHIDO COM NÃO", "INFO NÃO LOCALIZADA"))) -> VAZIO | G45: Ver | H45: 2 | I45: =IF(F45="PREENCHIDO COM SIM", "2", "1") -> 1
C46: 36 | D46: ATERRAMENTO_PADRONIZADO | E46: PAG_INSTALACAO | F46: =IF(PAGE3!N8= "SIM", "PREENCHIDO COM SIM", IF(PAGE3!N8= "NÃO","PREENCHIDO COM NÃO", "VAZIO")) -> VAZIO | G46: Ver | H46: 2 | I46: =IF(F46= "PREENCHIDO COM SIM", "2", "1") -> 1
C47: 37 | D47: POSSUI_CAIXA_PASSAGEM | E47: PAG_INSTALACAO | F47: =IF(PAGE3!G14= "SIM", "PREENCHIDO COM SIM", IF(PAGE3!G14= "NÃO","PREENCHIDO COM NÃO", "VAZIO")) -> VAZIO | G47: Ver | H47: 2 | I47: =IF(F47 = "PREENCHIDO COM NÃO", "2", IF(AND(F47= "PREENCHIDO COM SIM",F48= "PREENCHIDO COM SIM"), "2", "1")) -> 1
C48: 38 | D48: CAIXA_PADRONIZADA | E48: PAG_INSTALACAO | F48: =IF(PAGE3!N14= "SIM", "PREENCHIDO COM SIM", IF(PAGE3!N14= "NÃO","PREENCHIDO COM NÃO", "VAZIO")) -> VAZIO | G48: Ver | H48: 2 | I48: =IF(F47 = "PREENCHIDO COM NÃO", "2", IF(AND(F47= "PREENCHIDO COM SIM",F48= "PREENCHIDO COM SIM"), "2", "1")) -> 1
C49: 39 | D49: POSSUI_BOMBA_INCENDIO | E49: PAG_INSTALACAO | F49: =IF(PAGE3!G18= "SIM", "PREENCHIDO COM SIM", IF(PAGE3!G18= "NÃO","PREENCHIDO COM NÃO", "VAZIO")) -> VAZIO | G49: Ver | H49: 2 | I49: =IF(F49 = "PREENCHIDO COM NÃO", "2", IF(AND(F49= "PREENCHIDO COM SIM",F50= "PREENCHIDO COM SIM"), "2", "1")) -> 1
C50: 40 | D50: BOMBA_INCENDIO_PADRONIZADA | E50: PAG_INSTALACAO | F50: =IF(PAGE3!N18= "SIM", "PREENCHIDO COM SIM", IF(PAGE3!N18= "NÃO","PREENCHIDO COM NÃO", "VAZIO")) -> VAZIO | G50: Ver | H50: 2 | I50: =IF(F49 = "PREENCHIDO COM NÃO", "2", IF(AND(F49= "PREENCHIDO COM SIM",F50= "PREENCHIDO COM SIM"), "2", "1")) -> 1
C51: 41 | D51: TIPO_CABO_RAMAL_ENTRADA | E51: PAG_INSTALACAO | F51: =IF(PAGE3!H22= "SIM", "PREENCHIDO COM SIM", IF(PAGE3!H22= "NÃO","PREENCHIDO COM NÃO", "VAZIO")) -> VAZIO | G51: Ver | H51: 2 | I51: =IF(F51="VAZIO", "1", "2") -> 1
C52: 42 | D52: TERMINAL_PADRONIZADO | E52: PAG_INSTALACAO | F52: =IF(PAGE3!H27= "SIM", "PREENCHIDO COM SIM", IF(PAGE3!H27= "NÃO","PREENCHIDO COM NÃO", "VAZIO")) -> VAZIO | G52: Ver | H52: 2 | I52: =IF(F52="PREENCHIDO COM SIM", "2", "1") -> 1
C53: 42 | D53: DEMANDA_QDG_CALCULADA | E53: PAG_DEMANDA | F53: =IF(OR(ISBLANK(PAGE2!G13),PAGE2!G13=0,PAGE2!G13>50), "VAZIO OU DEMANDA DEVE SER <=50kVA", "PREENCHIDO") -> VAZIO OU DEMANDA DEVE SER <=50kVA | G53: Ver | H53: 2 | I53: =IF(F53="VAZIO OU DEMANDA DEVE SER <=50kVA", "1", "2") -> 1

Sheet PAGE10
A1: FALSE | B1: FALSE
C2: Versão 1.3 | I2: Data de Impressão: | L2: =NOW() -> 2024-10-04T11:47:26.860
D6: 1 - Dados da obra
D8: 1.1 - Número da ART/TRT: | H8: =UPPER(PAGE1!G7) -> 
D10: 1.2 - Solicitante: | N10: 1.3 - CPF/CNPJ
D11: =UPPER(PAGE1!D10) ->  | N11: =PAGE1!J10 -> 0
D13: 1.4 - E-mail Solicitante | N13: 1.5 - Telefone Solicitante
D14: =UPPER(PAGE1!D13) ->  | N14: =PAGE1!J13 -> 0
D16: 1.6 - E-mail Projetista | N16: 1.7 - Telefone Projetista
D17: =UPPER(PAGE1!D16) ->  | N17: =PAGE1!J16 -> 0
D19: 1.8 - Endereço da obra (conforme ART): | L19: Lat: | M19: =UPPER(PAGE1!J18) ->  | O19: Long: | P19: =UPPER(PAGE1!M18) -> 
D21: Logradouro: | F21: =UPPER(PAGE1!F20) ->  | P21: Nº: | Q21: =PAGE1!N20 -> 0
D23: CEP: | F23: =PAGE1!E22 -> 0 | L23: Bairro: | N23: =UPPER(PAGE1!J22) -> 
D25: Cidade: | F25: =UPPER(PAGE1!E24) ->  | L25: Comp. / Ref.: | N25: =UPPER(PAGE1!K24) -> 
D27: 2 - Referência elétrica
D29: 2.1 - Informe a distância do Ponto Conexão (PDE) até o limite da propriedade: | P29: =PAGE1!M28 -> 0 | Q29: Metros
D31: 2.2 - Informe o número da plaqueta que existe no poste da NEOENERGIA mais próximo: | P31: =UPPER(PAGE1!M30) -> 
D33: 2.3 - Ou, número do medidor de energia mais próximo: | P33: =UPPER(PAGE1!J32) -> 
D35: 3 - Quadros de Distribuição (QD)
D37: 3.1 - Quantidade de unidades consumidoras: | L37: =PAGE2!I7 -> 0 | O37: Carga Existente: | Q37: =PAGE2!M7 -> 0 kW
D39: 3.2 - Dados do(s) Quadro(s) de Distribuição (QD's): | O39: Carga à instalar: | Q39: =PAGE2!M8 -> 0 kW
E41: Dados dos Quadros | I41: QDG** | L41: QD - Parcial 1 | O41: QD - Parcial 2 | Q41: QD - Parcial 3
E42: Material | I42: =IF(PAGE2!G12= "", "", PAGE2!G12) ->  | L42: =IF(PAGE2!I12 = "", "N/A", PAGE2!I12) -> N/A | O42: =IF(PAGE2!K12 = "", "N/A", PAGE2!K12) -> N/A | Q42: =IF(PAGE2!M12 = "", "N/A", PAGE2!M12) -> N/A
E43: Demanda Total (kVA)* | I43: =IF(PAGE2!G13= "", "", PAGE2!G13) -> 0 | L43: =IF(PAGE2!I13= "", "N/A", PAGE2!I13) -> N/A | O43: =IF(PAGE2!K13= "", "N/A", PAGE2!K13) -> N/A | Q43: =IF(PAGE2!M13= "", "N/A", PAGE2!M13) -> N/A
E44: Barramento de Cobre | I44: =PAGE2!G14 ->  | L44: =IF(PAGE2!I14= "", "N/A", PAGE2!I14) -> N/A | O44: =IF(PAGE2!K14= "", "N/A", PAGE2!K14) -> N/A | Q44: =IF(PAGE2!M14= "", "N/A", PAGE2!M14) -> N/A
E45: Disjuntor Geral (A) | I45: =PAGE2!G15 ->  | L45: =IF(PAGE2!I15= "", "N/A", PAGE2!I15) -> N/A | O45: =IF(PAGE2!K15= "", "N/A", PAGE2!K15) -> N/A | Q45: =IF(PAGE2!M15= "", "N/A", PAGE2!M15) -> N/A
E46: Cabo do Ramal de Entrada (mm²) | I46: =PAGE2!G16 ->  | L46: =IF(PAGE2!I16= "", "N/A", PAGE2!I16) -> N/A | O46: =IF(PAGE2!K16= "", "N/A", PAGE2!K16) -> N/A | Q46: =IF(PAGE2!M16= "", "N/A", PAGE2!M16) -> N/A
E47: Diâmetro do Eletroduto | I47: =PAGE2!G17 ->  | L47: =IF(PAGE2!I17= "", "N/A", PAGE2!I17) -> N/A | O47: =IF(PAGE2!K17= "", "N/A", PAGE2!K17) -> N/A | Q47: =IF(PAGE2!M17= "", "N/A", PAGE2!M17) -> N/A
E48: Ramal de Ligação Neoenergia | I48: =PAGE2!G18 ->  | L48: =IF(PAGE2!I18= "", "N/A", PAGE2!I18) -> N/A | O48: =IF(PAGE2!K18= "", "N/A", PAGE2!K18) -> N/A | Q48: =IF(PAGE2!M18= "", "N/A", PAGE2!M18) -> N/A
E49: * O valor da demanda total deve ser igual à declarada na ART/TRT (ver aba informações no início).
E50: ** O valor da demanda calculada deve ser conforme metodologia do Anexo I e a Categoria de Agrupamento conforme Tabela 5 do Anexo II. O ramal de conexão deve ser do tipo aéreo e a edificação deve apresentar apenas um centro de medição, seguindo as limitações de caixas de medição por barramento de cada modelo.
D52: 3.3 - Localização da instalação do QDG:
D53: O QDG deve ser instalado voltado para a via pública, podendo ser instalado dentro da edificação mediante limitação técnica.
D55: =IF(PAGE2!G26= "", "", PAGE2!G26) ->  | E55: 3.3.1 - | F55: O QDG está instalado com acesso livre para a via pública?
F56: Se não, justificativa: | I56: =PAGE2!J26 -> 0
D58: =IF(PAGE2!L29= "", "", PAGE2!L29) ->  | E58: 3.3.2 - | F58: Se não (caso esteja dentro da edificação), o QDG está instalado limitando-se o comprimento do condutor em 40m do ponto de conexão?
D61: =IF(PAGE2!L32= "", "", PAGE2!L32) ->  | E61: 3.3.3 - | F61: Os locais de instalação dos medidores possuem identificação das unidades com placa 40x20mm em metal ou acrílico com texto em abaixo ou alto relevo?
D64: 4 - Informações da instalação
D66: 4.1 - Aterramento
D68: =IF(PAGE3!N8= "", "", PAGE3!N8) ->  | E68: 4.1.1 - | F68: Todos os quadros estão aterrados e conectados através de poços de inspeção, conforme de-senho 36 do Anexo III da norma DIS-NOR-053, em malha de terra formada por no mínimo 3 hastes?
F70: Cabo para interligar a malha de aterramento: 35mm² de cobre nú ou 2AWG de aço cobreado.
D72: 4.2 - Caixas de Passagens
D74: =IF(PAGE3!G14= "", "", PAGE3!G14) ->  | E74: 4.2.1 - | F74: Possui caixa de passagem do ramal de entrada?
D76: =IF(PAGE3!N14= "", "N/A", PAGE3!N14) -> N/A | E76: 4.2.2 - | F76: Se sim, as caixas de passagens serão instaladas conforme o Desenho 69 do Anexo III da norma DIS-NOR-053?
D78: 4.3 - Bomba de Incêndio
D80: =IF(PAGE3!G18= "", "", PAGE3!G18) ->  | E80: 4.3.1 - | F80: É previsto bomba de incêndio para a edificação?
D82: =IF(PAGE3!N18= "", "N/A", PAGE3!N18) -> N/A | E82: 4.3.2 - | F82: A bomba de incêndio será instalada conforme item 6.20.1 da norma DIS-NOR-053?
D84: 4.4 - Condutores
D86: =IF(PAGE3!H22= "", "", PAGE3!H22) ->  | E86: 4.4.1 - | F86: Os condutores são semi-rígidos (classe 2)?
F88: DIS-NOR-053 - Item 6.17.39: No caso da interligação seja executada com condutores com classe de encordoamento 5 (flexível), devem obrigatoriamente ter suas extremidades conectadas utilizando terminais maciços de compressão tipo curto aplicados com ferramenta apropriada e conforme recomendada pelo fabricante.
D91: 4.5 - Terminais
D93: =IF(PAGE3!H27= "", "", PAGE3!H27) ->  | E93: 4.5.1 - | F93: Os terminais usados para conectar os condutores aos barramentos são de pressão?
I96: Impressão: | L96: =NOW() -> 2024-10-04T11:47:26.860
I97: ART: | L97: =UPPER(PAGE1!G7) -> 
D98: =UPPER(CONCATENATE("ANOTAÇÕES / INFORMAÇÕES ADICIONAIS: ",IF(ISBLANK(PAGE4!D8),"NADA A DECLARAR.",PAGE4!D8))) -> ANOTAÇÕES / INFORMAÇÕES ADICIONAIS: NADA A DECLARAR.
D99: Informações de consumidores
D101: Item | E101: Tipo | F101: Tipo de Ligação | G101: Unidade Consumidora | I101: N° Identif. (Ex.: 1A) | J101: Pavimento | K101: Área (m²) | L101: Carga Instalada (kW) | M101: Demanda (kVA) | N101: Disjuntor de Proteção (A) | O101: Ramal de Distribuição (mm²) | Q101: Diâmetro do Eletroduto (mm²)
G102: QDG | Q102: QDG
D103: 1 | E103: =PAGE5!D10 -> 0 | F103: =PAGE5!E10 -> 0 | G103: =PAGE5!F10 -> 0 | I103: =PAGE5!G10 -> 0 | J103: =PAGE5!H10 -> 0 | K103: =PAGE5!I10 -> 0 | L103: =IF(PAGE5!J10=0, "-", PAGE5!J10) -> - | M103: =IF(PAGE5!K10=0, "-", PAGE5!K10) -> - | N103: =PAGE5!L10 ->  | O103: =PAGE5!M10 ->  | Q103: =PAGE5!N10 -> 
D104: 2 | E104: =PAGE5!D11 -> 0 | F104: =PAGE5!E11 -> 0 | G104: =PAGE5!F11 -> 0 | I104: =PAGE5!G11 -> 0 | J104: =PAGE5!H11 -> 0 | K104: =PAGE5!I11 -> 0 | L104: =IF(PAGE5!J11=0, "-", PAGE5!J11) -> - | M104: =IF(PAGE5!K11=0, "-", PAGE5!K11) -> - | N104: =PAGE5!L11 ->  | O104: =PAGE5!M11 ->  | Q104: =PAGE5!N11 -> 
D105: 3 | E105: =PAGE5!D12 -> 0 | F105: =PAGE5!E12 -> 0 | G105: =PAGE5!F12 -> 0 | I105: =PAGE5!G12 -> 0 | J105: =PAGE5!H12 -> 0 | K105: =PAGE5!I12 -> 0 | L105: =IF(PAGE5!J12=0, "-", PAGE5!J12) -> - | M105: =IF(PAGE5!K12=0, "-", PAGE5!K12) -> - | N105: =PAGE5!L12 ->  | O105: =PAGE5!M12 ->  | Q105: =PAGE5!N12 -> 
D106: 4 | E106: =PAGE5!D13 -> 0 | F106: =PAGE5!E13 -> 0 | G106: =PAGE5!F13 -> 0 | I106: =PAGE5!G13 -> 0 | J106: =PAGE5!H13 -> 0 | K106: =PAGE5!I13 -> 0 | L106: =IF(PAGE5!J13=0, "-", PAGE5!J13) -> - | M106: =IF(PAGE5!K13=0, "-", PAGE5!K13) -> - | N106: =PAGE5!L13 ->  | O106: =PAGE5!M13 ->  | Q106: =PAGE5!N13 -> 
D107: 5 | E107: =PAGE5!D14 -> 0 | F107: =PAGE5!E14 -> 0 | G107: =PAGE5!F14 -> 0 | I107: =PAGE5!G14 -> 0 | J107: =PAGE5!H14 -> 0 | K107: =PAGE5!I14 -> 0 | L107: =IF(PAGE5!J14=0, "-", PAGE5!J14) -> - | M107: =IF(PAGE5!K14=0, "-", PAGE5!K14) -> - | N107: =PAGE5!L14 ->  | O107: =PAGE5!M14 ->  | Q107: =PAGE5!N14 -> 
D108: 6 | E108: =PAGE5!D15 -> 0 | F108: =PAGE5!E15 -> 0 | G108: =PAGE5!F15 -> 0 | I108: =PAGE5!G15 -> 0 | J108: =PAGE5!H15 -> 0 | K108: =PAGE5!I15 -> 0 | L108: =IF(PAGE5!J15=0, "-", PAGE5!J15) -> - | M108: =IF(PAGE5!K15=0, "-", PAGE5!K15) -> - | N108: =PAGE5!L15 ->  | O108: =PAGE5!M15 ->  | Q108: =PAGE5!N15 -> 
D109: 7 | E109: =PAGE5!D16 -> 0 | F109: =PAGE5!E16 -> 0 | G109: =PAGE5!F16 -> 0 | I109: =PAGE5!G16 -> 0 | J109: =PAGE5!H16 -> 0 | K109: =PAGE5!I16 -> 0 | L109: =IF(PAGE5!J16=0, "-", PAGE5!J16) -> - | M109: =IF(PAGE5!K16=0, "-", PAGE5!K16) -> - | N109: =PAGE5!L16 ->  | O109: =PAGE5!M16 ->  | Q109: =PAGE5!N16 -> 
D110: 8 | E110: =PAGE5!D17 -> 0 | F110: =PAGE5!E17 -> 0 | G110: =PAGE5!F17 -> 0 | I110: =PAGE5!G17 -> 0 | J110: =PAGE5!H17 -> 0 | K110: =PAGE5!I17 -> 0 | L110: =IF(PAGE5!J17=0, "-", PAGE5!J17) -> - | M110: =IF(PAGE5!K17=0, "-", PAGE5!K17) -> - | N110: =PAGE5!L17 ->  | O110: =PAGE5!M17 ->  | Q110: =PAGE5!N17 -> 
D111: 9 | E111: =PAGE5!D18 -> 0 | F111: =PAGE5!E18 -> 0 | G111: =PAGE5!F18 -> 0 | I111: =PAGE5!G18 -> 0 | J111: =PAGE5!H18 -> 0 | K111: =PAGE5!I18 -> 0 | L111: =IF(PAGE5!J18=0, "-", PAGE5!J18) -> - | M111: =IF(PAGE5!K18=0, "-", PAGE5!K18) -> - | N111: =PAGE5!L18 ->  | O111: =PAGE5!M18 ->  | Q111: =PAGE5!N18 -> 
D112: 10 | E112: =PAGE5!D19 -> 0 | F112: =PAGE5!E19 -> 0 | G112: =PAGE5!F19 -> 0 | I112: =PAGE5!G19 -> 0 | J112: =PAGE5!H19 -> 0 | K112: =PAGE5!I19 -> 0 | L112: =IF(PAGE5!J19=0, "-", PAGE5!J19) -> - | M112: =IF(PAGE5!K19=0, "-", PAGE5!K19) -> - | N112: =PAGE5!L19 ->  | O112: =PAGE5!M19 ->  | Q112: =PAGE5!N19 -> 
D113: 11 | E113: =PAGE5!D20 -> 0 | F113: =PAGE5!E20 -> 0 | G113: =PAGE5!F20 -> 0 | I113: =PAGE5!G20 -> 0 | J113: =PAGE5!H20 -> 0 | K113: =PAGE5!I20 -> 0 | L113: =IF(PAGE5!J20=0, "-", PAGE5!J20) -> - | M113: =IF(PAGE5!K20=0, "-", PAGE5!K20) -> - | N113: =PAGE5!L20 ->  | O113: =PAGE5!M20 ->  | Q113: =PAGE5!N20 -> 
D114: 12 | E114: =PAGE5!D21 -> 0 | F114: =PAGE5!E21 -> 0 | G114: =PAGE5!F21 -> 0 | I114: =PAGE5!G21 -> 0 | J114: =PAGE5!H21 -> 0 | K114: =PAGE5!I21 -> 0 | L114: =IF(PAGE5!J21=0, "-", PAGE5!J21) -> - | M114: =IF(PAGE5!K21=0, "-", PAGE5!K21) -> - | N114: =PAGE5!L21 ->  | O114: =PAGE5!M21 ->  | Q114: =PAGE5!N21 -> 
D115: 13 | E115: =PAGE5!D22 -> 0 | F115: =PAGE5!E22 -> 0 | G115: =PAGE5!F22 -> 0 | I115: =PAGE5!G22 -> 0 | J115: =PAGE5!H22 -> 0 | K115: =PAGE5!I22 -> 0 | L115: =IF(PAGE5!J22=0, "-", PAGE5!J22) -> - | M115: =IF(PAGE5!K22=0, "-", PAGE5!K22) -> - | N115: =PAGE5!L22 ->  | O115: =PAGE5!M22 ->  | Q115: =PAGE5!N22 -> 
D116: 14 | E116: =PAGE5!D23 -> 0 | F116: =PAGE5!E23 -> 0 | G116: =PAGE5!F23 -> 0 | I116: =PAGE5!G23 -> 0 | J116: =PAGE5!H23 -> 0 | K116: =PAGE5!I23 -> 0 | L116: =IF(PAGE5!J23=0, "-", PAGE5!J23) -> - | M116: =IF(PAGE5!K23=0, "-", PAGE5!K23) -> - | N116: =PAGE5!L23 ->  | O116: =PAGE5!M23 ->  | Q116: =PAGE5!N23 -> 
D117: 15 | E117: =PAGE5!D24 -> 0 | F117: =PAGE5!E24 -> 0 | G117: =PAGE5!F24 -> 0 | I117: =PAGE5!G24 -> 0 | J117: =PAGE5!H24 -> 0 | K117: =PAGE5!I24 -> 0 | L117: =IF(PAGE5!J24=0, "-", PAGE5!J24) -> - | M117: =IF(PAGE5!K24=0, "-", PAGE5!K24) -> - | N117: =PAGE5!L24 ->  | O117: =PAGE5!M24 ->  | Q117: =PAGE5!N24 -> 
D118: 16 | E118: =PAGE5!D25 -> 0 | F118: =PAGE5!E25 -> 0 | G118: =PAGE5!F25 -> 0 | I118: =PAGE5!G25 -> 0 | J118: =PAGE5!H25 -> 0 | K118: =PAGE5!I25 -> 0 | L118: =IF(PAGE5!J25=0, "-", PAGE5!J25) -> - | M118: =IF(PAGE5!K25=0, "-", PAGE5!K25) -> - | N118: =PAGE5!L25 ->  | O118: =PAGE5!M25 ->  | Q118: =PAGE5!N25 -> 
D119: 17 | E119: =PAGE5!D26 -> 0 | F119: =PAGE5!E26 -> 0 | G119: =PAGE5!F26 -> 0 | I119: =PAGE5!G26 -> 0 | J119: =PAGE5!H26 -> 0 | K119: =PAGE5!I26 -> 0 | L119: =IF(PAGE5!J26=0, "-", PAGE5!J26) -> - | M119: =IF(PAGE5!K26=0, "-", PAGE5!K26) -> - | N119: =PAGE5!L26 ->  | O119: =PAGE5!M26 ->  | Q119: =PAGE5!N26 -> 
D120: 18 | E120: =PAGE5!D27 -> 0 | F120: =PAGE5!E27 -> 0 | G120: =PAGE5!F27 -> 0 | I120: =PAGE5!G27 -> 0 | J120: =PAGE5!H27 -> 0 | K120: =PAGE5!I27 -> 0 | L120: =IF(PAGE5!J27=0, "-", PAGE5!J27) -> - | M120: =IF(PAGE5!K27=0, "-", PAGE5!K27) -> - | N120: =PAGE5!L27 ->  | O120: =PAGE5!M27 ->  | Q120: =PAGE5!N27 -> 
D121: 19 | E121: =PAGE5!D28 -> 0 | F121: =PAGE5!E28 -> 0 | G121: =PAGE5!F28 -> 0 | I121: =PAGE5!G28 -> 0 | J121: =PAGE5!H28 -> 0 | K121: =PAGE5!I28 -> 0 | L121: =IF(PAGE5!J28=0, "-", PAGE5!J28) -> - | M121: =IF(PAGE5!K28=0, "-", PAGE5!K28) -> - | N121: =PAGE5!L28 ->  | O121: =PAGE5!M28 ->  | Q121: =PAGE5!N28 -> 
D122: 20 | E122: =PAGE5!D29 -> 0 | F122: =PAGE5!E29 -> 0 | G122: =PAGE5!F29 -> 0 | I122: =PAGE5!G29 -> 0 | J122: =PAGE5!H29 -> 0 | K122: =PAGE5!I29 -> 0 | L122: =IF(PAGE5!J29=0, "-", PAGE5!J29) -> - | M122: =IF(PAGE5!K29=0, "-", PAGE5!K29) -> - | N122: =PAGE5!L29 ->  | O122: =PAGE5!M29 ->  | Q122: =PAGE5!N29 -> 
D123: 21 | E123: =PAGE5!D30 -> 0 | F123: =PAGE5!E30 -> 0 | G123: =PAGE5!F30 -> 0 | I123: =PAGE5!G30 -> 0 | J123: =PAGE5!H30 -> 0 | K123: =PAGE5!I30 -> 0 | L123: =IF(PAGE5!J30=0, "-", PAGE5!J30) -> - | M123: =IF(PAGE5!K30=0, "-", PAGE5!K30) -> - | N123: =PAGE5!L30 ->  | O123: =PAGE5!M30 ->  | Q123: =PAGE5!N30 -> 
D124: 22 | E124: =PAGE5!D31 -> 0 | F124: =PAGE5!E31 -> 0 | G124: =PAGE5!F31 -> 0 | I124: =PAGE5!G31 -> 0 | J124: =PAGE5!H31 -> 0 | K124: =PAGE5!I31 -> 0 | L124: =IF(PAGE5!J31=0, "-", PAGE5!J31) -> - | M124: =IF(PAGE5!K31=0, "-", PAGE5!K31) -> - | N124: =PAGE5!L31 ->  | O124: =PAGE5!M31 ->  | Q124: =PAGE5!N31 -> 
D125: 23 | E125: =PAGE5!D32 -> 0 | F125: =PAGE5!E32 -> 0 | G125: =PAGE5!F32 -> 0 | I125: =PAGE5!G32 -> 0 | J125: =PAGE5!H32 -> 0 | K125: =PAGE5!I32 -> 0 | L125: =IF(PAGE5!J32=0, "-", PAGE5!J32) -> - | M125: =IF(PAGE5!K32=0, "-", PAGE5!K32) -> - | N125: =PAGE5!L32 ->  | O125: =PAGE5!M32 ->  | Q125: =PAGE5!N32 -> 
D126: 24 | E126: =PAGE5!D33 -> 0 | F126: =PAGE5!E33 -> 0 | G126: =PAGE5!F33 -> 0 | I126: =PAGE5!G33 -> 0 | J126: =PAGE5!H33 -> 0 | K126: =PAGE5!I33 -> 0 | L126: =IF(PAGE5!J33=0, "-", PAGE5!J33) -> - | M126: =IF(PAGE5!K33=0, "-", PAGE5!K33) -> - | N126: =PAGE5!L33 ->  | O126: =PAGE5!M33 ->  | Q126: =PAGE5!N33 -> 
G127: Esse QDG não possui consumidores, pois funcionará apenas como QPGS. | Q127: =IF(A1=TRUE,"1","") -> 
G128: QD - PARCIAL 1 | Q128: QD-P1
D129: 1 | E129: =PAGE6!D10 -> 0 | F129: =PAGE6!E10 -> 0 | G129: =PAGE6!F10 -> 0 | I129: =PAGE6!G10 -> 0 | J129: =PAGE6!H10 -> 0 | K129: =PAGE6!I10 -> 0 | L129: =IF(PAGE6!J10=0, "-", PAGE6!J10) -> - | M129: =IF(PAGE6!K10=0, "-", PAGE6!K10) -> - | N129: =PAGE6!L10 ->  | O129: =PAGE6!M10 ->  | Q129: =PAGE6!N10 -> 
D130: 2 | E130: =PAGE6!D11 -> 0 | F130: =PAGE6!E11 -> 0 | G130: =PAGE6!F11 -> 0 | I130: =PAGE6!G11 -> 0 | J130: =PAGE6!H11 -> 0 | K130: =PAGE6!I11 -> 0 | L130: =IF(PAGE6!J11=0, "-", PAGE6!J11) -> - | M130: =IF(PAGE6!K11=0, "-", PAGE6!K11) -> - | N130: =PAGE6!L11 ->  | O130: =PAGE6!M11 ->  | Q130: =PAGE6!N11 -> 
D131: 3 | E131: =PAGE6!D12 -> 0 | F131: =PAGE6!E12 -> 0 | G131: =PAGE6!F12 -> 0 | I131: =PAGE6!G12 -> 0 | J131: =PAGE6!H12 -> 0 | K131: =PAGE6!I12 -> 0 | L131: =IF(PAGE6!J12=0, "-", PAGE6!J12) -> - | M131: =IF(PAGE6!K12=0, "-", PAGE6!K12) -> - | N131: =PAGE6!L12 ->  | O131: =PAGE6!M12 ->  | Q131: =PAGE6!N12 -> 
D132: 4 | E132: =PAGE6!D13 -> 0 | F132: =PAGE6!E13 -> 0 | G132: =PAGE6!F13 -> 0 | I132: =PAGE6!G13 -> 0 | J132: =PAGE6!H13 -> 0 | K132: =PAGE6!I13 -> 0 | L132: =IF(PAGE6!J13=0, "-", PAGE6!J13) -> - | M132: =IF(PAGE6!K13=0, "-", PAGE6!K13) -> - | N132: =PAGE6!L13 ->  | O132: =PAGE6!M13 ->  | Q132: =PAGE6!N13 -> 
D133: 5 | E133: =PAGE6!D14 -> 0 | F133: =PAGE6!E14 -> 0 | G133: =PAGE6!F14 -> 0 | I133: =PAGE6!G14 -> 0 | J133: =PAGE6!H14 -> 0 | K133: =PAGE6!I14 -> 0 | L133: =IF(PAGE6!J14=0, "-", PAGE6!J14) -> - | M133: =IF(PAGE6!K14=0, "-", PAGE6!K14) -> - | N133: =PAGE6!L14 ->  | O133: =PAGE6!M14 ->  | Q133: =PAGE6!N14 -> 
D134: 6 | E134: =PAGE6!D15 -> 0 | F134: =PAGE6!E15 -> 0 | G134: =PAGE6!F15 -> 0 | I134: =PAGE6!G15 -> 0 | J134: =PAGE6!H15 -> 0 | K134: =PAGE6!I15 -> 0 | L134: =IF(PAGE6!J15=0, "-", PAGE6!J15) -> - | M134: =IF(PAGE6!K15=0, "-", PAGE6!K15) -> - | N134: =PAGE6!L15 ->  | O134: =PAGE6!M15 ->  | Q134: =PAGE6!N15 -> 
D135: 7 | E135: =PAGE6!D16 -> 0 | F135: =PAGE6!E16 -> 0 | G135: =PAGE6!F16 -> 0 | I135: =PAGE6!G16 -> 0 | J135: =PAGE6!H16 -> 0 | K135: =PAGE6!I16 -> 0 | L135: =IF(PAGE6!J16=0, "-", PAGE6!J16) -> - | M135: =IF(PAGE6!K16=0, "-", PAGE6!K16) -> - | N135: =PAGE6!L16 ->  | O135: =PAGE6!M16 ->  | Q135: =PAGE6!N16 -> 
D136: 8 | E136: =PAGE6!D17 -> 0 | F136: =PAGE6!E17 -> 0 | G136: =PAGE6!F17 -> 0 | I136: =PAGE6!G17 -> 0 | J136: =PAGE6!H17 -> 0 | K136: =PAGE6!I17 -> 0 | L136: =IF(PAGE6!J17=0, "-", PAGE6!J17) -> - | M136: =IF(PAGE6!K17=0, "-", PAGE6!K17) -> - | N136: =PAGE6!L17 ->  | O136: =PAGE6!M17 ->  | Q136: =PAGE6!N17 -> 
D137: 9 | E137: =PAGE6!D18 -> 0 | F137: =PAGE6!E18 -> 0 | G137: =PAGE6!F18 -> 0 | I137: =PAGE6!G18 -> 0 | J137: =PAGE6!H18 -> 0 | K137: =PAGE6!I18 -> 0 | L137: =IF(PAGE6!J18=0, "-", PAGE6!J18) -> - | M137: =IF(PAGE6!K18=0, "-", PAGE6!K18) -> - | N137: =PAGE6!L18 ->  | O137: =PAGE6!M18 ->  | Q137: =PAGE6!N18 -> 
D138: 10 | E138: =PAGE6!D19 -> 0 | F138: =PAGE6!E19 -> 0 | G138: =PAGE6!F19 -> 0 | I138: =PAGE6!G19 -> 0 | J138: =PAGE6!H19 -> 0 | K138: =PAGE6!I19 -> 0 | L138: =IF(PAGE6!J19=0, "-", PAGE6!J19) -> - | M138: =IF(PAGE6!K19=0, "-", PAGE6!K19) -> - | N138: =PAGE6!L19 ->  | O138: =PAGE6!M19 ->  | Q138: =PAGE6!N19 -> 
D139: 11 | E139: =PAGE6!D20 -> 0 | F139: =PAGE6!E20 -> 0 | G139: =PAGE6!F20 -> 0 | I139: =PAGE6!G20 -> 0 | J139: =PAGE6!H20 -> 0 | K139: =PAGE6!I20 -> 0 | L139: =IF(PAGE6!J20=0, "-", PAGE6!J20) -> - | M139: =IF(PAGE6!K20=0, "-", PAGE6!K20) -> - | N139: =PAGE6!L20 ->  | O139: =PAGE6!M20 ->  | Q139: =PAGE6!N20 -> 
D140: 12 | E140: =PAGE6!D21 -> 0 | F140: =PAGE6!E21 -> 0 | G140: =PAGE6!F21 -> 0 | I140: =PAGE6!G21 -> 0 | J140: =PAGE6!H21 -> 0 | K140: =PAGE6!I21 -> 0 | L140: =IF(PAGE6!J21=0, "-", PAGE6!J21) -> - | M140: =IF(PAGE6!K21=0, "-", PAGE6!K21) -> - | N140: =PAGE6!L21 ->  | O140: =PAGE6!M21 ->  | Q140: =PAGE6!N21 -> 
D141: 13 | E141: =PAGE6!D22 -> 0 | F141: =PAGE6!E22 -> 0 | G141: =PAGE6!F22 -> 0 | I141: =PAGE6!G22 -> 0 | J141: =PAGE6!H22 -> 0 | K141: =PAGE6!I22 -> 0 | L141: =IF(PAGE6!J22=0, "-", PAGE6!J22) -> - | M141: =IF(PAGE6!K22=0, "-", PAGE6!K22) -> - | N141: =PAGE6!L22 ->  | O141: =PAGE6!M22 ->  | Q141: =PAGE6!N22 -> 
D142: 14 | E142: =PAGE6!D23 -> 0 | F142: =PAGE6!E23 -> 0 | G142: =PAGE6!F23 -> 0 | I142: =PAGE6!G23 -> 0 | J142: =PAGE6!H23 -> 0 | K142: =PAGE6!I23 -> 0 | L142: =IF(PAGE6!J23=0, "-", PAGE6!J23) -> - | M142: =IF(PAGE6!K23=0, "-", PAGE6!K23) -> - | N142: =PAGE6!L23 ->  | O142: =PAGE6!M23 ->  | Q142: =PAGE6!N23 -> 
D143: 15 | E143: =PAGE6!D24 -> 0 | F143: =PAGE6!E24 -> 0 | G143: =PAGE6!F24 -> 0 | I143: =PAGE6!G24 -> 0 | J143: =PAGE6!H24 -> 0 | K143: =PAGE6!I24 -> 0 | L143: =IF(PAGE6!J24=0, "-", PAGE6!J24) -> - | M143: =IF(PAGE6!K24=0, "-", PAGE6!K24) -> - | N143: =PAGE6!L24 ->  | O143: =PAGE6!M24 ->  | Q143: =PAGE6!N24 -> 
D144: 16 | E144: =PAGE6!D25 -> 0 | F144: =PAGE6!E25 -> 0 | G144: =PAGE6!F25 -> 0 | I144: =PAGE6!G25 -> 0 | J144: =PAGE6!H25 -> 0 | K144: =PAGE6!I25 -> 0 | L144: =IF(PAGE6!J25=0, "-", PAGE6!J25) -> - | M144: =IF(PAGE6!K25=0, "-", PAGE6!K25) -> - | N144: =PAGE6!L25 ->  | O144: =PAGE6!M25 ->  | Q144: =PAGE6!N25 -> 
D145: 17 | E145: =PAGE6!D26 -> 0 | F145: =PAGE6!E26 -> 0 | G145: =PAGE6!F26 -> 0 | I145: =PAGE6!G26 -> 0 | J145: =PAGE6!H26 -> 0 | K145: =PAGE6!I26 -> 0 | L145: =IF(PAGE6!J26=0, "-", PAGE6!J26) -> - | M145: =IF(PAGE6!K26=0, "-", PAGE6!K26) -> - | N145: =PAGE6!L26 ->  | O145: =PAGE6!M26 ->  | Q145: =PAGE6!N26 -> 
D146: 18 | E146: =PAGE6!D27 -> 0 | F146: =PAGE6!E27 -> 0 | G146: =PAGE6!F27 -> 0 | I146: =PAGE6!G27 -> 0 | J146: =PAGE6!H27 -> 0 | K146: =PAGE6!I27 -> 0 | L146: =IF(PAGE6!J27=0, "-", PAGE6!J27) -> - | M146: =IF(PAGE6!K27=0, "-", PAGE6!K27) -> - | N146: =PAGE6!L27 ->  | O146: =PAGE6!M27 ->  | Q146: =PAGE6!N27 -> 
D147: 19 | E147: =PAGE6!D28 -> 0 | F147: =PAGE6!E28 -> 0 | G147: =PAGE6!F28 -> 0 | I147: =PAGE6!G28 -> 0 | J147: =PAGE6!H28 -> 0 | K147: =PAGE6!I28 -> 0 | L147: =IF(PAGE6!J28=0, "-", PAGE6!J28) -> - | M147: =IF(PAGE6!K28=0, "-", PAGE6!K28) -> - | N147: =PAGE6!L28 ->  | O147: =PAGE6!M28 ->  | Q147: =PAGE6!N28 -> 
D148: 20 | E148: =PAGE6!D29 -> 0 | F148: =PAGE6!E29 -> 0 | G148: =PAGE6!F29 -> 0 | I148: =PAGE6!G29 -> 0 | J148: =PAGE6!H29 -> 0 | K148: =PAGE6!I29 -> 0 | L148: =IF(PAGE6!J29=0, "-", PAGE6!J29) -> - | M148: =IF(PAGE6!K29=0, "-", PAGE6!K29) -> - | N148: =PAGE6!L29 ->  | O148: =PAGE6!M29 ->  | Q148: =PAGE6!N29 -> 
D149: 21 | E149: =PAGE6!D30 -> 0 | F149: =PAGE6!E30 -> 0 | G149: =PAGE6!F30 -> 0 | I149: =PAGE6!G30 -> 0 | J149: =PAGE6!H30 -> 0 | K149: =PAGE6!I30 -> 0 | L149: =IF(PAGE6!J30=0, "-", PAGE6!J30) -> - | M149: =IF(PAGE6!K30=0, "-", PAGE6!K30) -> - | N149: =PAGE6!L30 ->  | O149: =PAGE6!M30 ->  | Q149: =PAGE6!N30 -> 
D150: 22 | E150: =PAGE6!D31 -> 0 | F150: =PAGE6!E31 -> 0 | G150: =PAGE6!F31 -> 0 | I150: =PAGE6!G31 -> 0 | J150: =PAGE6!H31 -> 0 | K150: =PAGE6!I31 -> 0 | L150: =IF(PAGE6!J31=0, "-", PAGE6!J31) -> - | M150: =IF(PAGE6!K31=0, "-", PAGE6!K31) -> - | N150: =PAGE6!L31 ->  | O150: =PAGE6!M31 ->  | Q150: =PAGE6!N31 -> 
D151: 23 | E151: =PAGE6!D32 -> 0 | F151: =PAGE6!E32 -> 0 | G151: =PAGE6!F32 -> 0 | I151: =PAGE6!G32 -> 0 | J151: =PAGE6!H32 -> 0 | K151: =PAGE6!I32 -> 0 | L151: =IF(PAGE6!J32=0, "-", PAGE6!J32) -> - | M151: =IF(PAGE6!K32=0, "-", PAGE6!K32) -> - | N151: =PAGE6!L32 ->  | O151: =PAGE6!M32 ->  | Q151: =PAGE6!N32 -> 
D152: 24 | E152: =PAGE6!D33 -> 0 | F152: =PAGE6!E33 -> 0 | G152: =PAGE6!F33 -> 0 | I152: =PAGE6!G33 -> 0 | J152: =PAGE6!H33 -> 0 | K152: =PAGE6!I33 -> 0 | L152: =IF(PAGE6!J33=0, "-", PAGE6!J33) -> - | M152: =IF(PAGE6!K33=0, "-", PAGE6!K33) -> - | N152: =PAGE6!L33 ->  | O152: =PAGE6!M33 ->  | Q152: =PAGE6!N33 -> 
G153: QD - PARCIAL 2 | Q153: QD-P2
D154: 1 | E154: =PAGE7!D10 -> 0 | F154: =PAGE7!E10 -> 0 | G154: =PAGE7!F10 -> 0 | I154: =PAGE7!G10 -> 0 | J154: =PAGE7!H10 -> 0 | K154: =PAGE7!I10 -> 0 | L154: =IF(PAGE7!J10=0, "-", PAGE7!J10) -> - | M154: =IF(PAGE7!K10=0, "-", PAGE7!K10) -> - | N154: =PAGE7!L10 ->  | O154: =PAGE7!M10 ->  | Q154: =PAGE7!N10 -> 
D155: 2 | E155: =PAGE7!D11 -> 0 | F155: =PAGE7!E11 -> 0 | G155: =PAGE7!F11 -> 0 | I155: =PAGE7!G11 -> 0 | J155: =PAGE7!H11 -> 0 | K155: =PAGE7!I11 -> 0 | L155: =IF(PAGE7!J11=0, "-", PAGE7!J11) -> - | M155: =IF(PAGE7!K11=0, "-", PAGE7!K11) -> - | N155: =PAGE7!L11 ->  | O155: =PAGE7!M11 ->  | Q155: =PAGE7!N11 -> 
D156: 3 | E156: =PAGE7!D12 -> 0 | F156: =PAGE7!E12 -> 0 | G156: =PAGE7!F12 -> 0 | I156: =PAGE7!G12 -> 0 | J156: =PAGE7!H12 -> 0 | K156: =PAGE7!I12 -> 0 | L156: =IF(PAGE7!J12=0, "-", PAGE7!J12) -> - | M156: =IF(PAGE7!K12=0, "-", PAGE7!K12) -> - | N156: =PAGE7!L12 ->  | O156: =PAGE7!M12 ->  | Q156: =PAGE7!N12 -> 
D157: 4 | E157: =PAGE7!D13 -> 0 | F157: =PAGE7!E13 -> 0 | G157: =PAGE7!F13 -> 0 | I157: =PAGE7!G13 -> 0 | J157: =PAGE7!H13 -> 0 | K157: =PAGE7!I13 -> 0 | L157: =IF(PAGE7!J13=0, "-", PAGE7!J13) -> - | M157: =IF(PAGE7!K13=0, "-", PAGE7!K13) -> - | N157: =PAGE7!L13 ->  | O157: =PAGE7!M13 ->  | Q157: =PAGE7!N13 -> 
D158: 5 | E158: =PAGE7!D14 -> 0 | F158: =PAGE7!E14 -> 0 | G158: =PAGE7!F14 -> 0 | I158: =PAGE7!G14 -> 0 | J158: =PAGE7!H14 -> 0 | K158: =PAGE7!I14 -> 0 | L158: =IF(PAGE7!J14=0, "-", PAGE7!J14) -> - | M158: =IF(PAGE7!K14=0, "-", PAGE7!K14) -> - | N158: =PAGE7!L14 ->  | O158: =PAGE7!M14 ->  | Q158: =PAGE7!N14 -> 
D159: 6 | E159: =PAGE7!D15 -> 0 | F159: =PAGE7!E15 -> 0 | G159: =PAGE7!F15 -> 0 | I159: =PAGE7!G15 -> 0 | J159: =PAGE7!H15 -> 0 | K159: =PAGE7!I15 -> 0 | L159: =IF(PAGE7!J15=0, "-", PAGE7!J15) -> - | M159: =IF(PAGE7!K15=0, "-", PAGE7!K15) -> - | N159: =PAGE7!L15 ->  | O159: =PAGE7!M15 ->  | Q159: =PAGE7!N15 -> 
D160: 7 | E160: =PAGE7!D16 -> 0 | F160: =PAGE7!E16 -> 0 | G160: =PAGE7!F16 -> 0 | I160: =PAGE7!G16 -> 0 | J160: =PAGE7!H16 -> 0 | K160: =PAGE7!I16 -> 0 | L160: =IF(PAGE7!J16=0, "-", PAGE7!J16) -> - | M160: =IF(PAGE7!K16=0, "-", PAGE7!K16) -> - | N160: =PAGE7!L16 ->  | O160: =PAGE7!M16 ->  | Q160: =PAGE7!N16 -> 
D161: 8 | E161: =PAGE7!D17 -> 0 | F161: =PAGE7!E17 -> 0 | G161: =PAGE7!F17 -> 0 | I161: =PAGE7!G17 -> 0 | J161: =PAGE7!H17 -> 0 | K161: =PAGE7!I17 -> 0 | L161: =IF(PAGE7!J17=0, "-", PAGE7!J17) -> - | M161: =IF(PAGE7!K17=0, "-", PAGE7!K17) -> - | N161: =PAGE7!L17 ->  | O161: =PAGE7!M17 ->  | Q161: =PAGE7!N17 -> 
D162: 9 | E162: =PAGE7!D18 -> 0 | F162: =PAGE7!E18 -> 0 | G162: =PAGE7!F18 -> 0 | I162: =PAGE7!G18 -> 0 | J162: =PAGE7!H18 -> 0 | K162: =PAGE7!I18 -> 0 | L162: =IF(PAGE7!J18=0, "-", PAGE7!J18) -> - | M162: =IF(PAGE7!K18=0, "-", PAGE7!K18) -> - | N162: =PAGE7!L18 ->  | O162: =PAGE7!M18 ->  | Q162: =PAGE7!N18 -> 
D163: 10 | E163: =PAGE7!D19 -> 0 | F163: =PAGE7!E19 -> 0 | G163: =PAGE7!F19 -> 0 | I163: =PAGE7!G19 -> 0 | J163: =PAGE7!H19 -> 0 | K163: =PAGE7!I19 -> 0 | L163: =IF(PAGE7!J19=0, "-", PAGE7!J19) -> - | M163: =IF(PAGE7!K19=0, "-", PAGE7!K19) -> - | N163: =PAGE7!L19 ->  | O163: =PAGE7!M19 ->  | Q163: =PAGE7!N19 -> 
D164: 11 | E164: =PAGE7!D20 -> 0 | F164: =PAGE7!E20 -> 0 | G164: =PAGE7!F20 -> 0 | I164: =PAGE7!G20 -> 0 | J164: =PAGE7!H20 -> 0 | K164: =PAGE7!I20 -> 0 | L164: =IF(PAGE7!J20=0, "-", PAGE7!J20) -> - | M164: =IF(PAGE7!K20=0, "-", PAGE7!K20) -> - | N164: =PAGE7!L20 ->  | O164: =PAGE7!M20 ->  | Q164: =PAGE7!N20 -> 
D165: 12 | E165: =PAGE7!D21 -> 0 | F165: =PAGE7!E21 -> 0 | G165: =PAGE7!F21 -> 0 | I165: =PAGE7!G21 -> 0 | J165: =PAGE7!H21 -> 0 | K165: =PAGE7!I21 -> 0 | L165: =IF(PAGE7!J21=0, "-", PAGE7!J21) -> - | M165: =IF(PAGE7!K21=0, "-", PAGE7!K21) -> - | N165: =PAGE7!L21 ->  | O165: =PAGE7!M21 ->  | Q165: =PAGE7!N21 -> 
D166: 13 | E166: =PAGE7!D22 -> 0 | F166: =PAGE7!E22 -> 0 | G166: =PAGE7!F22 -> 0 | I166: =PAGE7!G22 -> 0 | J166: =PAGE7!H22 -> 0 | K166: =PAGE7!I22 -> 0 | L166: =IF(PAGE7!J22=0, "-", PAGE7!J22) -> - | M166: =IF(PAGE7!K22=0, "-", PAGE7!K22) -> - | N166: =PAGE7!L22 ->  | O166: =PAGE7!M22 ->  | Q166: =PAGE7!N22 -> 
D167: 14 | E167: =PAGE7!D23 -> 0 | F167: =PAGE7!E23 -> 0 | G167: =PAGE7!F23 -> 0 | I167: =PAGE7!G23 -> 0 | J167: =PAGE7!H23 -> 0 | K167: =PAGE7!I23 -> 0 | L167: =IF(PAGE7!J23=0, "-", PAGE7!J23) -> - | M167: =IF(PAGE7!K23=0, "-", PAGE7!K23) -> - | N167: =PAGE7!L23 ->  | O167: =PAGE7!M23 ->  | Q167: =PAGE7!N23 -> 
D168: 15 | E168: =PAGE7!D24 -> 0 | F168: =PAGE7!E24 -> 0 | G168: =PAGE7!F24 -> 0 | I168: =PAGE7!G24 -> 0 | J168: =PAGE7!H24 -> 0 | K168: =PAGE7!I24 -> 0 | L168: =IF(PAGE7!J24=0, "-", PAGE7!J24) -> - | M168: =IF(PAGE7!K24=0, "-", PAGE7!K24) -> - | N168: =PAGE7!L24 ->  | O168: =PAGE7!M24 ->  | Q168: =PAGE7!N24 -> 
D169: 16 | E169: =PAGE7!D25 -> 0 | F169: =PAGE7!E25 -> 0 | G169: =PAGE7!F25 -> 0 | I169: =PAGE7!G25 -> 0 | J169: =PAGE7!H25 -> 0 | K169: =PAGE7!I25 -> 0 | L169: =IF(PAGE7!J25=0, "-", PAGE7!J25) -> - | M169: =IF(PAGE7!K25=0, "-", PAGE7!K25) -> - | N169: =PAGE7!L25 ->  | O169: =PAGE7!M25 ->  | Q169: =PAGE7!N25 -> 
D170: 17 | E170: =PAGE7!D26 -> 0 | F170: =PAGE7!E26 -> 0 | G170: =PAGE7!F26 -> 0 | I170: =PAGE7!G26 -> 0 | J170: =PAGE7!H26 -> 0 | K170: =PAGE7!I26 -> 0 | L170: =IF(PAGE7!J26=0, "-", PAGE7!J26) -> - | M170: =IF(PAGE7!K26=0, "-", PAGE7!K26) -> - | N170: =PAGE7!L26 ->  | O170: =PAGE7!M26 ->  | Q170: =PAGE7!N26 -> 
D171: 18 | E171: =PAGE7!D27 -> 0 | F171: =PAGE7!E27 -> 0 | G171: =PAGE7!F27 -> 0 | I171: =PAGE7!G27 -> 0 | J171: =PAGE7!H27 -> 0 | K171: =PAGE7!I27 -> 0 | L171: =IF(PAGE7!J27=0, "-", PAGE7!J27) -> - | M171: =IF(PAGE7!K27=0, "-", PAGE7!K27) -> - | N171: =PAGE7!L27 ->  | O171: =PAGE7!M27 ->  | Q171: =PAGE7!N27 -> 
D172: 19 | E172: =PAGE7!D28 -> 0 | F172: =PAGE7!E28 -> 0 | G172: =PAGE7!F28 -> 0 | I172: =PAGE7!G28 -> 0 | J172: =PAGE7!H28 -> 0 | K172: =PAGE7!I28 -> 0 | L172: =IF(PAGE7!J28=0, "-", PAGE7!J28) -> - | M172: =IF(PAGE7!K28=0, "-", PAGE7!K28) -> - | N172: =PAGE7!L28 ->  | O172: =PAGE7!M28 ->  | Q172: =PAGE7!N28 -> 
D173: 20 | E173: =PAGE7!D29 -> 0 | F173: =PAGE7!E29 -> 0 | G173: =PAGE7!F29 -> 0 | I173: =PAGE7!G29 -> 0 | J173: =PAGE7!H29 -> 0 | K173: =PAGE7!I29 -> 0 | L173: =IF(PAGE7!J29=0, "-", PAGE7!J29) -> - | M173: =IF(PAGE7!K29=0, "-", PAGE7!K29) -> - | N173: =PAGE7!L29 ->  | O173: =PAGE7!M29 ->  | Q173: =PAGE7!N29 -> 
D174: 21 | E174: =PAGE7!D30 -> 0 | F174: =PAGE7!E30 -> 0 | G174: =PAGE7!F30 -> 0 | I174: =PAGE7!G30 -> 0 | J174: =PAGE7!H30 -> 0 | K174: =PAGE7!I30 -> 0 | L174: =IF(PAGE7!J30=0, "-", PAGE7!J30) -> - | M174: =IF(PAGE7!K30=0, "-", PAGE7!K30) -> - | N174: =PAGE7!L30 ->  | O174: =PAGE7!M30 ->  | Q174: =PAGE7!N30 -> 
D175: 22 | E175: =PAGE7!D31 -> 0 | F175: =PAGE7!E31 -> 0 | G175: =PAGE7!F31 -> 0 | I175: =PAGE7!G31 -> 0 | J175: =PAGE7!H31 -> 0 | K175: =PAGE7!I31 -> 0 | L175: =IF(PAGE7!J31=0, "-", PAGE7!J31) -> - | M175: =IF(PAGE7!K31=0, "-", PAGE7!K31) -> - | N175: =PAGE7!L31 ->  | O175: =PAGE7!M31 ->  | Q175: =PAGE7!N31 -> 
D176: 23 | E176: =PAGE7!D32 -> 0 | F176: =PAGE7!E32 -> 0 | G176: =PAGE7!F32 -> 0 | I176: =PAGE7!G32 -> 0 | J176: =PAGE7!H32 -> 0 | K176: =PAGE7!I32 -> 0 | L176: =IF(PAGE7!J32=0, "-", PAGE7!J32) -> - | M176: =IF(PAGE7!K32=0, "-", PAGE7!K32) -> - | N176: =PAGE7!L32 ->  | O176: =PAGE7!M32 ->  | Q176: =PAGE7!N32 -> 
D177: 24 | E177: =PAGE7!D33 -> 0 | F177: =PAGE7!E33 -> 0 | G177: =PAGE7!F33 -> 0 | I177: =PAGE7!G33 -> 0 | J177: =PAGE7!H33 -> 0 | K177: =PAGE7!I33 -> 0 | L177: =IF(PAGE7!J33=0, "-", PAGE7!J33) -> - | M177: =IF(PAGE7!K33=0, "-", PAGE7!K33) -> - | N177: =PAGE7!L33 ->  | O177: =PAGE7!M33 ->  | Q177: =PAGE7!N33 -> 
G178: QD - PARCIAL 3 | Q178: QD-P3
D179: 1 | E179: =PAGE8!D10 -> 0 | F179: =PAGE8!E10 -> BLOCO | G179: =PAGE8!F10 -> Demanda | I179: =PAGE8!G10 -> Disjuntor | J179: =PAGE8!H10 -> Barramento | K179: =PAGE8!I10 -> Circuitos | L179: =IF(PAGE8!J10=0, "-", PAGE8!J10) -> Ramal | M179: =IF(PAGE8!K10=0, "-", PAGE8!K10) -> - | N179: =PAGE8!L10 -> 0 | O179: =PAGE8!M10 -> 0 | Q179: =PAGE8!N10 -> 0
D180: 2 | E180: =PAGE8!D11 -> 0 | F180: =PAGE8!E11 -> 0 | G180: =PAGE8!F11 -> 0 | I180: =PAGE8!G11 ->  | J180: =PAGE8!H11 ->  | K180: =PAGE8!I11 ->  | L180: =IF(PAGE8!J11=0, "-", PAGE8!J11) ->  | M180: =IF(PAGE8!K11=0, "-", PAGE8!K11) -> - | N180: =PAGE8!L11 -> 0 | O180: =PAGE8!M11 -> 0 | Q180: =PAGE8!N11 -> 0
D181: 3 | E181: =PAGE8!D12 -> 0 | F181: =PAGE8!E12 -> 0 | G181: =PAGE8!F12 -> 0 | I181: =PAGE8!G12 ->  | J181: =PAGE8!H12 ->  | K181: =PAGE8!I12 ->  | L181: =IF(PAGE8!J12=0, "-", PAGE8!J12) ->  | M181: =IF(PAGE8!K12=0, "-", PAGE8!K12) -> - | N181: =PAGE8!L12 -> 0 | O181: =PAGE8!M12 -> 0 | Q181: =PAGE8!N12 -> 0
D182: 4 | E182: =PAGE8!D13 -> 0 | F182: =PAGE8!E13 -> 0 | G182: =PAGE8!F13 -> 0 | I182: =PAGE8!G13 ->  | J182: =PAGE8!H13 ->  | K182: =PAGE8!I13 ->  | L182: =IF(PAGE8!J13=0, "-", PAGE8!J13) ->  | M182: =IF(PAGE8!K13=0, "-", PAGE8!K13) -> - | N182: =PAGE8!L13 -> 0 | O182: =PAGE8!M13 -> 0 | Q182: =PAGE8!N13 -> 0
D183: 5 | E183: =PAGE8!D14 -> 0 | F183: =PAGE8!E14 -> 0 | G183: =PAGE8!F14 -> 0 | I183: =PAGE8!G14 ->  | J183: =PAGE8!H14 ->  | K183: =PAGE8!I14 ->  | L183: =IF(PAGE8!J14=0, "-", PAGE8!J14) ->  | M183: =IF(PAGE8!K14=0, "-", PAGE8!K14) -> - | N183: =PAGE8!L14 -> 0 | O183: =PAGE8!M14 -> 0 | Q183: =PAGE8!N14 -> 0
D184: 6 | E184: =PAGE8!D15 -> 0 | F184: =PAGE8!E15 -> 0 | G184: =PAGE8!F15 -> 0 | I184: =PAGE8!G15 ->  | J184: =PAGE8!H15 ->  | K184: =PAGE8!I15 ->  | L184: =IF(PAGE8!J15=0, "-", PAGE8!J15) ->  | M184: =IF(PAGE8!K15=0, "-", PAGE8!K15) -> - | N184: =PAGE8!L15 -> 0 | O184: =PAGE8!M15 -> 0 | Q184: =PAGE8!N15 -> 0
D185: 7 | E185: =PAGE8!D16 -> 0 | F185: =PAGE8!E16 -> 0 | G185: =PAGE8!F16 -> 0 | I185: =PAGE8!G16 ->  | J185: =PAGE8!H16 ->  | K185: =PAGE8!I16 ->  | L185: =IF(PAGE8!J16=0, "-", PAGE8!J16) ->  | M185: =IF(PAGE8!K16=0, "-", PAGE8!K16) -> - | N185: =PAGE8!L16 -> 0 | O185: =PAGE8!M16 -> 0 | Q185: =PAGE8!N16 -> 0
D186: 8 | E186: =PAGE8!D17 -> 0 | F186: =PAGE8!E17 -> 0 | G186: =PAGE8!F17 -> 0 | I186: =PAGE8!G17 -> 0 | J186: =PAGE8!H17 -> 0 | K186: =PAGE8!I17 -> 0 | L186: =IF(PAGE8!J17=0, "-", PAGE8!J17) -> - | M186: =IF(PAGE8!K17=0, "-", PAGE8!K17) -> - | N186: =PAGE8!L17 -> 0 | O186: =PAGE8!M17 -> 0 | Q186: =PAGE8!N17 -> 0
D187: 9 | E187: =PAGE8!D18 -> 0 | F187: =PAGE8!E18 -> 0 | G187: =PAGE8!F18 -> 0 | I187: =PAGE8!G18 -> 0 | J187: =PAGE8!H18 -> 0 | K187: =PAGE8!I18 -> 0 | L187: =IF(PAGE8!J18=0, "-", PAGE8!J18) -> - | M187: =IF(PAGE8!K18=0, "-", PAGE8!K18) -> - | N187: =PAGE8!L18 -> 0 | O187: =PAGE8!M18 -> 0 | Q187: =PAGE8!N18 -> 0
D188: 10 | E188: =PAGE8!D19 -> 0 | F188: =PAGE8!E19 -> 0 | G188: =PAGE8!F19 -> Demanda CONDOMÍNIO - Carga Instalada | I188: =PAGE8!G19 -> 0 | J188: =PAGE8!H19 -> 0 | K188: =PAGE8!I19 -> 0 | L188: =IF(PAGE8!J19=0, "-", PAGE8!J19) -> - | M188: =IF(PAGE8!K19=0, "-", PAGE8!K19) -> - | N188: =PAGE8!L19 -> 0 | O188: =PAGE8!M19 -> 0 | Q188: =PAGE8!N19 -> 0
D189: 11 | E189: =PAGE8!D20 -> Dem. | F189: =PAGE8!E20 -> 0 | G189: =PAGE8!F20 -> Parcela a | I189: =PAGE8!G20 -> 0 | J189: =PAGE8!H20 -> 0 | K189: =PAGE8!I20 -> kVA | L189: =IF(PAGE8!J20=0, "-", PAGE8!J20) -> Ds | M189: =IF(PAGE8!K20=0, "-", PAGE8!K20) -> - | N189: =PAGE8!L20 -> 0 | O189: =PAGE8!M20 -> 0 | Q189: =PAGE8!N20 -> 0
D190: 12 | E190: =PAGE8!D21 -> 0 | F190: =PAGE8!E21 -> 0 | G190: =PAGE8!F21 -> Pot (kVA) | I190: =PAGE8!G21 -> Fd | J190: =PAGE8!H21 -> Demanda | K190: =PAGE8!I21 -> 0 | L190: =IF(PAGE8!J21=0, "-", PAGE8!J21) -> - | M190: =IF(PAGE8!K21=0, "-", PAGE8!K21) -> - | N190: =PAGE8!L21 -> 0 | O190: =PAGE8!M21 -> 0 | Q190: =PAGE8!N21 -> 0
D191: 13 | E191: =PAGE8!D22 -> 0 | F191: =PAGE8!E22 -> 0 | G191: =PAGE8!F22 -> 0 | I191: =PAGE8!G22 -> 0 | J191: =PAGE8!H22 -> 0 | K191: =PAGE8!I22 -> 0 | L191: =IF(PAGE8!J22=0, "-", PAGE8!J22) -> - | M191: =IF(PAGE8!K22=0, "-", PAGE8!K22) -> - | N191: =PAGE8!L22 -> 0 | O191: =PAGE8!M22 -> 0 | Q191: =PAGE8!N22 -> 0
D192: 14 | E192: =PAGE8!D23 -> 0 | F192: =PAGE8!E23 -> 0 | G192: =PAGE8!F23 -> 0 | I192: =PAGE8!G23 -> 0 | J192: =PAGE8!H23 -> 0 | K192: =PAGE8!I23 -> 0 | L192: =IF(PAGE8!J23=0, "-", PAGE8!J23) -> CI | M192: =IF(PAGE8!K23=0, "-", PAGE8!K23) -> - | N192: =PAGE8!L23 -> 0 | O192: =PAGE8!M23 -> 0 | Q192: =PAGE8!N23 -> 0
D193: 15 | E193: =PAGE8!D24 -> 0 | F193: =PAGE8!E24 -> 0 | G193: =PAGE8!F24 -> Parcela b | I193: =PAGE8!G24 -> 0 | J193: =PAGE8!H24 -> 0 | K193: =PAGE8!I24 -> kVA | L193: =IF(PAGE8!J24=0, "-", PAGE8!J24) -> Caixa | M193: =IF(PAGE8!K24=0, "-", PAGE8!K24) -> - | N193: =PAGE8!L24 -> 0 | O193: =PAGE8!M24 -> 0 | Q193: =PAGE8!N24 -> 0
D194: 16 | E194: =PAGE8!D25 -> 0 | F194: =PAGE8!E25 -> 0 | G194: =PAGE8!F25 -> Pot (kVA) | I194: =PAGE8!G25 -> Qtd | J194: =PAGE8!H25 -> Demanda | K194: =PAGE8!I25 -> Fd | L194: =IF(PAGE8!J25=0, "-", PAGE8!J25) ->  | M194: =IF(PAGE8!K25=0, "-", PAGE8!K25) -> - | N194: =PAGE8!L25 -> 0 | O194: =PAGE8!M25 -> 0 | Q194: =PAGE8!N25 -> 0
D195: 17 | E195: =PAGE8!D26 -> 0 | F195: =PAGE8!E26 -> 0 | G195: =PAGE8!F26 -> 0 | I195: =PAGE8!G26 -> 0 | J195: =PAGE8!H26 -> 0 | K195: =PAGE8!I26 -> 0 | L195: =IF(PAGE8!J26=0, "-", PAGE8!J26) -> - | M195: =IF(PAGE8!K26=0, "-", PAGE8!K26) -> - | N195: =PAGE8!L26 -> 0 | O195: =PAGE8!M26 -> 0 | Q195: =PAGE8!N26 -> 0
D196: 18 | E196: =PAGE8!D27 -> 0 | F196: =PAGE8!E27 -> 0 | G196: =PAGE8!F27 -> 0 | I196: =PAGE8!G27 -> 0 | J196: =PAGE8!H27 -> 0 | K196: =PAGE8!I27 -> 0 | L196: =IF(PAGE8!J27=0, "-", PAGE8!J27) -> - | M196: =IF(PAGE8!K27=0, "-", PAGE8!K27) -> - | N196: =PAGE8!L27 -> 0 | O196: =PAGE8!M27 -> 0 | Q196: =PAGE8!N27 -> 0
D197: 19 | E197: =PAGE8!D28 -> 0 | F197: =PAGE8!E28 -> 0 | G197: =PAGE8!F28 -> Parcela f | I197: =PAGE8!G28 -> 0 | J197: =PAGE8!H28 -> 0 | K197: =PAGE8!I28 -> kVA | L197: =IF(PAGE8!J28=0, "-", PAGE8!J28) -> - | M197: =IF(PAGE8!K28=0, "-", PAGE8!K28) -> - | N197: =PAGE8!L28 -> 0 | O197: =PAGE8!M28 -> 0 | Q197: =PAGE8!N28 -> 0
D198: 20 | E198: =PAGE8!D29 -> 0 | F198: =PAGE8!E29 -> 0 | G198: =PAGE8!F29 -> Pot (kVA) | I198: =PAGE8!G29 -> Qtd | J198: =PAGE8!H29 -> Demanda | K198: =PAGE8!I29 -> Fd | L198: =IF(PAGE8!J29=0, "-", PAGE8!J29) -> - | M198: =IF(PAGE8!K29=0, "-", PAGE8!K29) -> - | N198: =PAGE8!L29 -> 0 | O198: =PAGE8!M29 -> 0 | Q198: =PAGE8!N29 -> 0
D199: 21 | E199: =PAGE8!D30 -> 0 | F199: =PAGE8!E30 -> 0 | G199: =PAGE8!F30 -> 0 | I199: =PAGE8!G30 -> 0 | J199: =PAGE8!H30 -> 0 | K199: =PAGE8!I30 -> 0 | L199: =IF(PAGE8!J30=0, "-", PAGE8!J30) -> - | M199: =IF(PAGE8!K30=0, "-", PAGE8!K30) -> - | N199: =PAGE8!L30 -> 0 | O199: =PAGE8!M30 -> 0 | Q199: =PAGE8!N30 -> 0
D200: 22 | E200: =PAGE8!D31 -> 0 | F200: =PAGE8!E31 -> 0 | G200: =PAGE8!F31 -> 0 | I200: =PAGE8!G31 -> 0 | J200: =PAGE8!H31 -> 0 | K200: =PAGE8!I31 -> 0 | L200: =IF(PAGE8!J31=0, "-", PAGE8!J31) -> - | M200: =IF(PAGE8!K31=0, "-", PAGE8!K31) -> - | N200: =PAGE8!L31 -> 0 | O200: =PAGE8!M31 -> 0 | Q200: =PAGE8!N31 -> 0
D201: 23 | E201: =PAGE8!D32 -> 0 | F201: =PAGE8!E32 -> 0 | G201: =PAGE8!F32 -> Parcela g | I201: =PAGE8!G32 -> 0 | J201: =PAGE8!H32 -> 0 | K201: =PAGE8!I32 -> kVA | L201: =IF(PAGE8!J32=0, "-", PAGE8!J32) -> - | M201: =IF(PAGE8!K32=0, "-", PAGE8!K32) -> - | N201: =PAGE8!L32 -> 0 | O201: =PAGE8!M32 -> 0 | Q201: =PAGE8!N32 -> 0
D202: 24 | E202: =PAGE8!D33 -> 0 | F202: =PAGE8!E33 -> 0 | G202: =PAGE8!F33 -> Pot (cv) | I202: =PAGE8!G33 -> Fases | J202: =PAGE8!H33 -> Qtd | K202: =PAGE8!I33 -> Demanda | L202: =IF(PAGE8!J33=0, "-", PAGE8!J33) -> Fd | M202: =IF(PAGE8!K33=0, "-", PAGE8!K33) -> - | N202: =PAGE8!L33 -> 0 | O202: =PAGE8!M33 -> 0 | Q202: =PAGE8!N33 -> 0
I203: Impressão: | L203: =NOW() -> 2024-10-04T11:47:26.850 | Q203: .
I204: ART: | L204: =UPPER(PAGE1!G7) ->  | Q204: .
D205: Quadro de Cálculo de Demanda

Sheet Planilha1 (hidden)
I8: I
F10: 1F
I11: IT
I12: 40

Sheet PAGE1.1
D5: 1 - Dados da obra
D7: 1.1 - Número da ART/TRT: | K7: 1.2 - Nº CREA/CFT:
D9: 1.3 - Solicitante: | K9: 1.4 - CPF/CNPJ
D12: 1.5 - E-mail Solicitante: | K12: 1.6 - Telefone Solicitante
D15: 1.7 - E-mail Projetista: | K15: 1.8 - Telefone Projetista:
D18: 1.9 - Endereço da obra (conforme ART):
D19: Logradouro: | M19: Nº
D21: CEP: | I21: Bairro:
D23: Cidade: | I23: Comp. / Ref.:
D25: 1.10 - Coordenadas geográficas da Subestação: | I25: Lat: | L25: Long:
D27: 2 - Referência elétrica
D29: 2.1 - Informe a distância do Ponto de Entrega até o limite da Via pública: | N29: Metros
D31: 2.2 - Informe a distância do Ponto de Entrega até o poste NEOENERGIA mais próximo: | N31: Metros
D33: 2.3 - Informe o número da plaqueta/barramento do poste NEOENERGIA mais próximo:
D35: 2.4 - Ou, número do medidor de energia mais próximo:
O38: Versão 1.3

Sheet PAGE2.1
D5: 3 - Dados Técnicos | R5: Potência nominal | S5: Disjuntor (A) | T5: Isolação PVC 70º C (mm²) | U5: Eletroduto diâmetro nominal (mm) | W5: Isolação EPR/XLPE 90º C (mm²) | X5: Eletroduto diâmetro nominal (mm)
U6: PVC | V6: AÇO | X6: PVC | Y6: AÇO
D7: 3.1 - A Subestação está instalada em via Pública? | R7: 30 | S7: 50 | T7: 3x16(16) | U7: 1.1/4” | V7: 1.1/4” | W7: 3x10(10) | X7: 1.1/4” | Y7: 1.1/4”
D8: Para aprovação é necessário que não esteja em via pública. | R8: 45 | S8: 70 | T8: 3x25(25) | U8: 1.1/4” | V8: 1.1/4” | W8: 3x16(16) | X8: 1.1/4” | Y8: 1.1/4”
D9: 3.2 - Potência do Transformador (kVA): | I9: *Demanda calculada (kVA): | N9: *Deve ser menor ou igual à potência do transformador. | R9: 75 | S9: 125 | T9: 3x50(25) | U9: 1.1/2” | V9: 1.1/2” | W9: 3x35(25) | X9: 1.1/2” | Y9: 1.1/2”
R10: 112.5 | S10: 175 | T10: 3x95(50) | U10: 2" | V10: 2" | W10: 3x70(35) | X10: 2" | Y10: 2"
D11: 3.3 - Quanto à modalidade tarifária: | K11: =IF(ISBLANK(G11), "3",IF(G11="Tarifa Horária Azul", "1", IF(G11="Tarifa Horária Verde", "1", "2"))) -> 3 | R11: 150 | S11: 250 | T11: 3x150(70) | U11: 2.1/2” | V11: 2.1/2” | W11: 3x95(50) | X11: 2.1/2” | Y11: 2.1/2”
G12: =IF(OR(K11<>"2",G9<=112.5),"","*Clientes com subestação de potência maior que 112,5 kVA não podem optar pela tarifa como grupo B.") ->  | R12: 225 | S12: 350 | T12: 2x[3x95(50)] | U12: 2 x 2” | V12: 2 x 2” | W12: 2x[3x75(35)] | X12: 2 x 2” | Y12: 2 x 2”
D13: 3.4 - Demanda Contratada (kW): | H13: =IF(K11<> "1","","*Demanda Contratada deve ser menor ou igual à potência do Trafo.") ->  | R13: 300 | S13: 500 | T13: 2x[3x150(70)] | U13: 2x2.1/2” | V13: 2x2.1/2” | W13: 2x[3x95(50)] | X13: 2x2.1/2” | Y13: 2x2.1/2”
D14: 3.4 - Carga Instalada (kW):
D15: A obra deve seguir os seguintes critérios mínimos para aprovação:
D17: Disjuntor da Subestação (A) | F17: Condutores do secundário | I17: Eletroduto Diâmetro Nominal (mm) | M17: Poste da Subestação (Tipo / Esforço)
D19: =IFERROR(INDEX($S$7:$S$13,MATCH($G$9,$R$7:$R$13,0),),"") ->  | F19: Se Isolação PVC 70° C (mm²) | I19: =IFERROR(INDEX($U$7:$U$13,MATCH($G$9,$R$7:$R$13,0),),"") ->  | J19: PVC | M19: Circular | N19: =IF(ISBLANK(G9), "",IF(AND(G9>0, G9<= 112.5), "400", "600")) -> 
H21: OU
F22: =IFERROR(INDEX($T$7:$T$13,MATCH($G$9,$R$7:$R$13,0),),"") -> 
E23: OU | I23: =IFERROR(INDEX($V$7:$V$13,MATCH($G$9,$R$7:$R$13,0),),"") ->  | J23: AÇO | M23: Duplo T | N23: =IF(ISBLANK(G9), "",IF(AND(G9>0, G9<300), "600", "N/A")) -> 
F27: Se Isolação EPR/XLPE 90° C (mm²) | I27: =IFERROR(INDEX($X$7:$X$13,MATCH($G$9,$R$7:$R$13,0),),"") ->  | J27: PVC | M27: Altura (m) | N27: =IF(ISBLANK(G9),"","11 ou 12") -> 
H29: OU
F30: =IFERROR(INDEX($W$7:$W$13,MATCH($G$9,$R$7:$R$13,0),),"") -> 
I31: =IFERROR(INDEX($Y$7:$Y$13,MATCH($G$9,$R$7:$R$13,0),),"") ->  | J31: AÇO | M31: Engast. | N31: =IF(ISBLANK(G9), "","L/10+0,6") -> 
D35: 3.5 - Trata-se de Atmosfera Agressiva conforme Item 5.53 da DIS-NOR-012 (REV-04)?
D36: Quanto aos Equipamentos: Verificar exigências do Item 7.3.1 da DIS-NOR-012 (REV-04).
D37: Quanto aos postes: Verificar exigências do Item 6.3.1 da DIS-NOR-012 (REV-04).
N40: Versão 1.3

Sheet PAGE3.1
D5: 4 - Informações da instalação
D7: 4.1 - Caixa de medição
D9: Obs: Para verificar os todos os tipos de caixas que podem ser usadas neste padrão, consultar a Tabela 14 da DIS-NOR-036 REV 04.
E11: 4.1.1 - | F11: =IF(AND(PAGE2.1!G9>0,PAGE2.1!G9<=45),"A caixa de medição será conforme Anexo III da norma DIS-ETE-145-REV 01?",IF(PAGE2.1!G9=75,"A caixa de medição será conforme Anexo VI da norma DIS-ETE-145 - REV 01?",IF(PAGE2.1!G9>75,"A caixa de medição será conforme Anexo VII da norma DIS-ETE-145 - REV 01?","Preencha o item 3.2 - Potência do Transformador"))) -> Preencha o item 3.2 - Potência do Transformador
E14: 4.1.2 - | F14: A caixa será instalada em mureta, junto ao poste do transformador?
E16: 4.1.3 - | F16: A caixa de medição está em local de fácil acesso e boas condições de segurança?
E18: 4.1.4 - | F18: =IF(AND(PAGE2.1!G9>0,PAGE2.1!G9<=75), "A altura da parte superior da caixa até o solo será de 1,6m?", IF(PAGE2.1!G9>75, "A altura da parte superior da caixa até o solo será de 1,8m?", "Preencha o item 3.2 - Potência do Transformador")) -> Preencha o item 3.2 - Potência do Transformador
E20: 4.1.5 - | F20: Será instalado eletroduto com diâmetro de 20 mm para permitir a leitura remota, respeitando o item 7.9.1.16 do normativo DIS-NOR-036?
D23: 4.2 - Eletroduto da Subestação Aérea
E25: 4.2.1 - | F25: O eletroduto está totalmente aparente?
E27: 4.2.2 - | F27: =IF(PAGE2.1!L35="NÃO","O eletroduto é de ferro galvanizado parede dupla e está aterrado?",IF(PAGE2.1!L35="SIM","Trata-se de Atmosfera Agressiva e portanto está sendo instalado o eletroduto de PVC?","Preencher Item 3.5 sobre qual tipo de ambiente.")) -> Preencher Item 3.5 sobre qual tipo de ambiente.
D31: 4.3 - Aterramento
E33: 4.3.1 - | F33: O aterramento da subestação aérea será feito por no mínimo 4 hastes interligadas por meio cabo de cobre nu de seção mínima de 50 mm² ou aço cobreado 2 AWG, conforme NBR 15751 e conforme item 7.25.10.7 da norma DIS-NOR-036?
D37: 4.4 - Distância de segurança
E39: 4.4.1 - | F39: A subestação será montada de forma que atenda à distâncias de segurança do Anexo VIII da norma DIS-NOR-012?
D42: 4.5 - Entrada de Energia
E44: 4.5.1 - | F44: Existe alguma medição ativa no local? | J44: Conta Contrato: | O44: *
F45: Obs.: A ligação da Subestação está condicionada à desativação da medição existente.
E47: 4.5.2 - | F47: =IF(PAGE2.1!L35="SIM","As estruturas do poste do cliente são de ancoragem e estão no padrão para ser conectado o cabo de cobre nú?",IF(PAGE2.1!L35="NÃO","As estruturas do poste do cliente são de ancoragem e estão no padrão de rede compacta?","Preencher Item 3.5 sobre qual tipo de ambiente.")) -> Preencher Item 3.5 sobre qual tipo de ambiente.
O51: Versão 1.3

Sheet PAGE 4.2
H14: PLANTA SITUAÇÃO/LOCALIZAÇÃO
M19: Anotar Nome da Rua | CE19: Anotar Nome da Rua
T22: Nota: Todos os afastamentos indicados em relação ao poste devem ser indicados em metros.
AS23: Edificação
AS27: Anotar Finalidade da Empresa
AW41: Anotar distância (M)
AF47: Anotar UC ou Medidor do Vizinho | BH47: Anotar UC ou Medidor do Vizinho
AM50: Anotar distância (M) | AY50: Anotar distância (M)
AM60: =CONCATENATE(PAGE1.1!M29," m",) -> m | AW60: =CONCATENATE(PAGE1.1!J25," ; ",PAGE1.1!M25) -> ;
AP73: INTERLIGAÇÃO DISTRIBUIDORA
X79: =CONCATENATE(PAGE1.1!F19,", ",PAGE1.1!N19,", ",PAGE1.1!J21," - ",PAGE1.1!E23) -> , , -

Sheet PAGE4.1
C2: =IF(PAGE9.1!F7 = 37, "1", "0") -> 0
D7: Anotações / Informações adicionais.
D19: Limite de 1500 caracteres.
O22: Versão 1.3

Sheet PAGE9.1
E6: Total de itens: | F6: 37
E7: Conforme | F7: =COUNTIF(H11:H47,3) -> 1
E8: Inconforme | F8: =COUNTIF(H11:H47, 2) -> 36
C10: Item | D10: Campo | E10: Local | F10: Situação | G10: Status
C11: 1 | D11: ART_REGISTRO | E11: PAG_DADOS_OBRA | F11: =IF(OR(ISBLANK(PAGE1.1!G7),ISBLANK(PAGE1.1!M7)), "VAZIO", "PREENCHIDO") -> VAZIO | G11: Ver | H11: =I11+1 -> 2 | I11: =IF(F11="VAZIO", "1", "2") -> 1
C12: 2 | D12: SOLICITANTE | E12: PAG_DADOS_OBRA | F12: =IF(ISBLANK(PAGE1.1!D10), "VAZIO", "PREENCHIDO") -> VAZIO | G12: Ver | H12: =I12+1 -> 2 | I12: =IF(F12="VAZIO", "1", "2") -> 1
C13: 3 | D13: CPF_CNPJ | E13: PAG_DADOS_OBRA | F13: =IF(ISBLANK(PAGE1.1!K10), "VAZIO", "PREENCHIDO") -> VAZIO | G13: Ver | H13: 2 | I13: 1
C14: 4 | D14: EMAIL_SOLICITANTE | E14: PAG_DADOS_OBRA | F14: =IF(ISBLANK(PAGE1.1!D13), "VAZIO", "PREENCHIDO") -> VAZIO | G14: Ver | H14: 2 | I14: 1
C15: 5 | D15: EMAIL_PROJETISTA | E15: PAG_DADOS_OBRA | F15: =IF(ISBLANK(PAGE1.1!D16), "VAZIO", "PREENCHIDO") -> VAZIO | G15: Ver | H15: 2 | I15: 1
C16: 6 | D16: TELEFONE_SOLICITANTE | E16: PAG_DADOS_OBRA | F16: =IF(ISBLANK(PAGE1.1!K13), "VAZIO", "PREENCHIDO") -> VAZIO | G16: Ver | H16: 2 | I16: 1
C17: 7 | D17: TELEFONE_PROJETISTA | E17: PAG_DADOS_OBRA | F17: =IF(ISBLANK(PAGE1.1!K16), "VAZIO", "PREENCHIDO") -> VAZIO | G17: Ver | H17: 2 | I17: 1
C18: 8 | D18: END_LOGRADOURO | E18: PAG_DADOS_OBRA | F18: =IF(ISBLANK(PAGE1.1!F19), "VAZIO", "PREENCHIDO") -> VAZIO | G18: Ver | H18: =I18+1 -> 2 | I18: 1
C19: 9 | D19: END_N_CASA | E19: PAG_DADOS_OBRA | F19: =IF(ISBLANK(PAGE1.1!N19), "VAZIO", "PREENCHIDO") -> VAZIO | G19: Ver | H19: 2 | I19: 1
C20: 10 | D20: END_CEP | E20: PAG_DADOS_OBRA | F20: =IF(ISBLANK(PAGE1.1!E21), "VAZIO", "PREENCHIDO") -> VAZIO | G20: Ver | H20: 2 | I20: =IF(F20="VAZIO", "1", "2") -> 1
C21: 11 | D21: END_BAIRRO | E21: PAG_DADOS_OBRA | F21: =IF(ISBLANK(PAGE1.1!J21), "VAZIO", "PREENCHIDO") -> VAZIO | G21: Ver | H21: 2 | I21: 1
C22: 12 | D22: END_CIDADE | E22: PAG_DADOS_OBRA | F22: =IF(ISBLANK(PAGE1.1!E23), "VAZIO", "PREENCHIDO") -> VAZIO | G22: Ver | H22: 2 | I22: 1
C23: 13 | D23: END_COMPLEMENTO | E23: PAG_DADOS_OBRA | F23: =IF(ISBLANK(PAGE1.1!K23), "VAZIO", "PREENCHIDO") -> VAZIO | G23: Ver | H23: =I23+1 -> 2 | I23: =IF(F23="VAZIO", "1", "2") -> 1
C24: 14 | D24: LATITUDE | E24: PAG_DADOS_OBRA | F24: =IF(ISBLANK(PAGE1.1!J25), "VAZIO", "PREENCHIDO") -> VAZIO | G24: Ver | H24: 2 | I24: =IF(F24="VAZIO", "1", "2") -> 1
C25: 15 | D25: LONGITUDE | E25: PAG_DADOS_OBRA | F25: =IF(ISBLANK(PAGE1.1!M25), "VAZIO", "PREENCHIDO") -> VAZIO | G25: Ver | H25: 2 | I25: 1
C26: 16 | D26: LIMITE_POSTE | E26: PAG_DADOS_OBRA | F26: =IF(ISBLANK(PAGE1.1!M29), "VAZIO", "PREENCHIDO") -> VAZIO | G26: Ver | H26: 2 | I26: 1
C27: 17 | D27: DISTANCIA_POSTE_NEOPE | E27: PAG_DADOS_OBRA | F27: =IF(ISBLANK(PAGE1.1!M31), "VAZIO", "PREENCHIDO") -> VAZIO | G27: Ver | H27: 2 | I27: =IF(F27="VAZIO", "1", "2") -> 1
C28: 18 | D28: BARRAMENTO_NEOPE | E28: PAG_DADOS_OBRA | F28: =IF(ISBLANK(PAGE1.1!M33), "VAZIO", "PREENCHIDO") -> VAZIO | G28: Ver | H28: 2 | I28: =IF(AND(F28="VAZIO",F29="VAZIO"), "1", "2") -> 1
C29: 19 | D29: MEDIDOR_VIZINHO | E29: PAG_DADOS_OBRA | F29: =IF(ISBLANK(PAGE1.1!J35), "VAZIO", "PREENCHIDO") -> VAZIO | G29: Ver | H29: 2 | I29: =IF(AND(F28="VAZIO",F29="VAZIO"), "1", "2") -> 1
C30: 20 | D30: POSIÇÃO_SUBESTAÇÃO | E30: PAG_DADOS_TECNICOS | F30: =IF(PAGE2.1!H7= "SIM", "PREENCHIDO COM SIM", IF(PAGE2.1!H7= "NÃO","PREENCHIDO COM NÃO", "VAZIO")) -> VAZIO | G30: Ver | H30: =I30+1 -> 2 | I30: =IF(F30="PREENCHIDO COM NÃO", "2", "1") -> 1
C31: 21 | D31: TRANSFORMADOR | E31: PAG_DADOS_TECNICOS | F31: =IF(ISBLANK(PAGE2.1!G9), "VAZIO", "PREENCHIDO") -> VAZIO | G31: Ver | H31: 2 | I31: =IF(F31="VAZIO", "1", "2") -> 1
C32: 22 | D32: DEMANDA_CALCULADA | E32: PAG_DADOS_TECNICOS | F32: =IF(ISBLANK(PAGE2.1!M9),"VAZIO",IF(PAGE2.1!M9<=PAGE2.1!G9,"PREENCHIDO","PREENCHIDO INCORRETO")) -> VAZIO | G32: Ver | H32: 2 | I32: =IF(F32="VAZIO","1",IF(F32="PREENCHIDO","2","1")) -> 1
C33: 23 | D33: TIPO_TARIFA | E33: PAG_DADOS_TECNICOS | F33: =IF(ISBLANK(PAGE2.1!G11), "VAZIO", IF(PAGE2.1!G11= "Tarifa Horária Azul", "PREENCHIDO COM TARIFA HORÁRIA AZUL", IF(PAGE2.1!G11= "Tarifa Horária Verde", "PREENCHIDO COM TARIFA HORÁRIA VERDE", "PREENCHIDO COM OPTANTE GRUPO B"))) -> VAZIO | G33: Ver | H33: =I33+1 -> 2 | I33: =IF(ISBLANK(PAGE2.1!G11), "1", IF(AND(PAGE2.1!G11= "Tarifa Horária Azul", F34= "PREENCHIDO"), "2", IF(AND(PAGE2.1!G11= "Tarifa Horária Verde",F34="PREENCHIDO"), "2", IF(AND(F33 = "PREENCHIDO COM OPTANTE GRUPO B",PAGE2.1!G12=""), "2","1")))) -> 1
C34: 24 | D34: =IF(PAGE2.1!K11<>"2","DEMANDA_CONTRATADA","CARGA_INSTALADA") -> DEMANDA_CONTRATADA | E34: PAG_DADOS_TECNICOS | F34: =IF(F33 = "PREENCHIDO COM OPTANTE GRUPO B", IF(ISBLANK(PAGE2.1!G14), "VAZIO","PREENCHIDO"),IF(ISBLANK(PAGE2.1!G13), "VAZIO", IF(PAGE2.1!G13<=PAGE2.1!G9,"PREENCHIDO","PREENCHIDO INCORRETO"))) -> VAZIO | G34: Ver | H34: =I34+1 -> 2 | I34: =IF(ISBLANK(PAGE2.1!G11), "1", IF(AND(PAGE2.1!G11= "Tarifa Horária Azul", F34= "PREENCHIDO"), "2", IF(AND(PAGE2.1!G11= "Tarifa Horária Verde",F34="PREENCHIDO"), "2", IF(AND(F33 = "PREENCHIDO COM OPTANTE GRUPO B",PAGE2.1!G14<>0), "2","1")))) -> 1
C35: 25 | D35: TIPO_ATMOSFERA | E35: PAG_DADOS_TECNICOS | F35: =IF(ISBLANK(PAGE2.1!L35), "VAZIO", "PREENCHIDO") -> VAZIO | G35: Ver | H35: =I35+1 -> 2 | I35: =IF(F35="VAZIO","1","2") -> 1
C36: 26 | D36: CAIXA_MEDIÇÃO_PADRAO | E36: PAG_INSTALACAO | F36: =IF(PAGE3.1!D11= "SIM", "PREENCHIDO COM SIM", IF(PAGE3.1!D11= "NÃO","PREENCHIDO COM NÃO", "VAZIO")) -> VAZIO | G36: Ver | H36: 2 | I36: =IF(F36="PREENCHIDO COM SIM", "2", "1") -> 1
C37: 27 | D37: CAIXA_MEDIÇÃO_MURETA | E37: PAG_INSTALACAO | F37: =IF(PAGE3.1!D14= "SIM", "PREENCHIDO COM SIM", IF(PAGE3.1!D14= "NÃO","PREENCHIDO COM NÃO", "VAZIO")) -> VAZIO | G37: Ver | H37: 2 | I37: 1
C38: 28 | D38: CAIXA_MEDIÇÃO_SEGURANÇA | E38: PAG_INSTALACAO | F38: =IF(PAGE3.1!D16= "SIM", "PREENCHIDO COM SIM", IF(PAGE3.1!D16= "NÃO","PREENCHIDO COM NÃO", "VAZIO")) -> VAZIO | G38: Ver | H38: 2 | I38: 1
C39: 29 | D39: CAIXA_MEDIÇÃO_ALTURA | E39: PAG_INSTALACAO | F39: =IF(PAGE3.1!D18= "SIM", "PREENCHIDO COM SIM", IF(PAGE3.1!D18= "NÃO","PREENCHIDO COM NÃO", "VAZIO")) -> VAZIO | G39: Ver | H39: 2 | I39: 1
C40: 30 | D40: CAIXA_MEDIÇÃO_REMOTA | E40: PAG_INSTALACAO | F40: =IF(PAGE3.1!D20= "SIM", "PREENCHIDO COM SIM", IF(PAGE3.1!D20= "NÃO","PREENCHIDO COM NÃO", "VAZIO")) -> VAZIO | G40: Ver | H40: 2 | I40: 1
C41: 31 | D41: ELETRODUTO | E41: PAG_INSTALACAO | F41: =IF(PAGE3.1!D25= "SIM", "PREENCHIDO COM SIM", IF(PAGE3.1!D25= "NÃO","PREENCHIDO COM NÃO", "VAZIO")) -> VAZIO | G41: Ver | H41: 2 | I41: 1
C42: 32 | D42: ELETRODUTO_MATERIAL | E42: PAG_INSTALACAO | F42: =IF(PAGE3.1!D27= "SIM", "PREENCHIDO COM SIM", IF(PAGE3.1!D27= "NÃO","PREENCHIDO COM NÃO", "VAZIO")) -> VAZIO | G42: Ver | H42: 2 | I42: =IF(F42="PREENCHIDO COM SIM", "2", "1") -> 1
C43: 33 | D43: ATERRAMENTO | E43: PAG_INSTALACAO | F43: =IF(PAGE3.1!D33= "SIM", "PREENCHIDO COM SIM", IF(PAGE3.1!D33= "NÃO","PREENCHIDO COM NÃO", "VAZIO")) -> VAZIO | G43: Ver | H43: 2 | I43: 1
C44: 34 | D44: DISTANCIA_SEGURANÇA | E44: PAG_INSTALACAO | F44: =IF(PAGE3.1!D39= "SIM", "PREENCHIDO COM SIM", IF(PAGE3.1!D39= "NÃO","PREENCHIDO COM NÃO", "VAZIO")) -> VAZIO | G44: Ver | H44: 2 | I44: 1
C45: 35 | D45: ENTRADA_ENERGIA | E45: PAG_INSTALACAO | F45: =IF(PAGE3.1!D44= "SIM", "PREENCHIDO COM SIM", IF(PAGE3.1!D44= "NÃO","PREENCHIDO COM NÃO", "VAZIO")) -> VAZIO | G45: Ver | H45: =I45+1 -> 2 | I45: =IF(F45="VAZIO", "1", "2") -> 1
C46: 36 | D46: CONTA_CONTRATO | E46: PAG_INSTALACAO | F46: =IF(ISBLANK(PAGE3.1!L44), "VAZIO", "PREENCHIDO") -> VAZIO | G46: Ver | H46: 3 | I46: =IF(AND(F45= "PREENCHIDO COM SIM", F46="VAZIO"), "1", "2") -> 2
C47: 37 | D47: ESTRUTURA_PADRAO | E47: PAG_INSTALACAO | F47: =IF(PAGE3.1!D47= "SIM", "PREENCHIDO COM SIM", IF(PAGE3.1!D47= "NÃO","PREENCHIDO COM NÃO", "VAZIO")) -> VAZIO | G47: Ver | H47: 2 | I47: =IF(F47="PREENCHIDO COM SIM", "2", "1") -> 1

Sheet PAGE10.1
C2: Versão 1.3 | H2: Data de Impressão: | J2: =NOW() -> 2024-10-04T11:47:26.860
D5: 1 - Dados da obra
D7: =PAGE1.1!D7 -> 1.1 - Número da ART/TRT: | G7: =UPPER(PAGE1.1!G7) -> 
D8: =PAGE1.1!K7 -> 1.2 - Nº CREA/CFT: | G8: =UPPER(PAGE1.1!M7) -> 
D9: =PAGE1.1!D9 -> 1.3 - Solicitante: | K9: =PAGE1.1!K9 -> 1.4 - CPF/CNPJ
D10: =UPPER(PAGE1.1!D10) ->  | K10: =PAGE1.1!K10 -> 0
D12: =PAGE1.1!D12 -> 1.5 - E-mail Solicitante: | K12: =PAGE1.1!K12 -> 1.6 - Telefone Solicitante
D13: =UPPER(PAGE1.1!D13) ->  | K13: =PAGE1.1!K13 -> 0
D15: =PAGE1.1!D15 -> 1.7 - E-mail Projetista: | K15: =PAGE1.1!K15 -> 1.8 - Telefone Projetista:
D16: =UPPER(PAGE1.1!D16) ->  | K16: =PAGE1.1!K16 -> 0
D18: =PAGE1.1!D18 -> 1.9 - Endereço da obra (conforme ART):
D20: Logradouro: | F20: =UPPER(PAGE1.1!F19) ->  | M20: Nº | N20: =UPPER(PAGE1.1!N19) -> 
D22: CEP: | E22: =PAGE1.1!E21 -> 0 | I22: Bairro: | J22: =UPPER(PAGE1.1!J21) -> 
D24: Cidade: | E24: =UPPER(PAGE1.1!E23) ->  | I24: Comp. / Ref.: | K24: =UPPER(PAGE1.1!K23) -> 
D26: =PAGE1.1!D25 -> 1.10 - Coordenadas geográficas da Subestação: | I26: Lat: | J26: =UPPER(PAGE1.1!J25) ->  | L26: Long: | M26: =UPPER(PAGE1.1!M25) -> 
D28: 2 - Referência elétrica
D30: 2.1 - Informe a distância do Ponto de Entrega até o limite da Via pública: | M30: =PAGE1.1!M29 -> 0 | N30: Metros
D32: 2.2 - Informe a distância do Ponto de Entrega até o poste NEOPE mais próximo: | M32: =PAGE1.1!M31 -> 0 | N32: Metros
D34: 2.3 - Informe o número da plaqueta/barramento que existe no poste da NEOPE mais próximo: | M34: =UPPER(PAGE1.1!M33) -> 
D36: 2.4 - Ou, número do medidor de energia mais próximo: | J36: =UPPER(PAGE1.1!J35) -> 
D38: 3 - Dados Técnicos
D40: 3.1 - A Substação está instalada em via Pública? | I40: =PAGE2.1!H7 -> 0
D42: 3.2 - Potência do Transformador (kVA): | I42: =PAGE2.1!G9 -> 0 | K42: Demanda calculada (kVA): | N42: =IF(ISBLANK(PAGE2.1!M9),"VAZIO", PAGE2.1!M9) -> VAZIO
D44: 3.3 - Quanto à modalidade tarifária: | I44: =PAGE2.1!G11 -> 0 | L44: =PAGE2.1!K11 -> 3
D46: =IF(L44="1",PAGE2.1!D$13,PAGE2.1!D$14) -> 3.4 - Carga Instalada (kW): | I46: =IF(L44="1",PAGE2.1!G$13,PAGE2.1!G$14) -> 0
D48: A obra deve seguir os seguintes critérios mínimos para aprovação:
D50: Disjuntor da Substação (A) | G50: Condutores do secundário | J50: Eletroduto Diâmetro Nominal (mm) | M50: Poste da Subestação (Tipo / Esforço)
D52: =PAGE2.1!D19 ->  | G52: Se Isolação PVC 70° C (mm²) | J52: =PAGE2.1!I19 ->  | K52: PVC | M52: Circular | N52: =PAGE2.1!N19 -> 
I54: OU
G55: =PAGE2.1!F22 -> 
F56: OU | J56: =PAGE2.1!I23 ->  | K56: AÇO | M56: Duplo T | N56: =PAGE2.1!N23 -> 
G60: Se Isolação EPR/XLPE 90° C (mm²) | J60: =PAGE2.1!I27 ->  | K60: PVC | M60: Altura (m) | N60: =PAGE2.1!N27 -> 
I62: OU
G63: =PAGE2.1!F30 -> 
J64: =PAGE2.1!I31 ->  | K64: AÇO | M64: Engast. | N64: =PAGE2.1!N31 -> 
D68: 3.5 - Trata-se de Atemosfera Agressiva conforme Item 5.53 da DIS-NOR-012 (REV-04)? | L68: =PAGE2.1!L35 -> 0
D69: Quanto aos Equipamentos: Verificar exigências do Item 7.3.1 da DIS-NOR-012 (REV-04).
D70: Quanto aos postes: Verificar exigências do Item 6.3.1 da DIS-NOR-012 (REV-04).
D72: 4 - Informações da instalação
D74: 4.1 - Caixa de medição
D76: Para verificar todos os tipos de caixas que podem ser usadas neste padrão, consultar a Tabela 14 da DIS-NOR-036 REV 04.
D78: =PAGE3.1!D11 -> 0 | E78: 4.1.1 - | F78: =PAGE3.1!F11 -> Preencha o item 3.2 - Potência do Transformador
D80: =PAGE3.1!D14 -> 0 | E80: 4.1.2 - | F80: A caixa será instalada em mureta, junto ao poste do transformador?
D82: =PAGE3.1!D16 -> 0 | E82: 4.1.3 - | F82: A caixa de medição está em local de fácil acesso e boas condições de segurança?
D84: =PAGE3.1!D18 -> 0 | E84: 4.1.4 - | F84: =PAGE3.1!F18 -> Preencha o item 3.2 - Potência do Transformador
D86: =PAGE3.1!D20 -> 0 | E86: 4.1.5 - | F86: =PAGE3.1!F20 -> Será instalado eletroduto com diâmetro de 20 mm para permitir a leitura remota, respeitando o item 7.9.1.16 do normativo DIS-NOR-036?
D89: 4.2 - Eletroduto da Subestação Aérea
D91: =PAGE3.1!D25 -> 0 | E91: 4.2.1 - | F91: O eletroduto está totalmente aparente?
D93: =PAGE3.1!D27 -> 0 | E93: 4.2.2 - | F93: =PAGE3.1!F27 -> Preencher Item 3.5 sobre qual tipo de ambiente.
D95: 4.3 - Aterramento
D97: =PAGE3.1!D33 -> 0 | E97: 4.3.1 - | F97: O aterramento da subestação aérea será feito por no mínimo 4 hastes interligadas por meio cabo de cobre nu de seção mínima de 50 mm² ou aço cobreado 2 AWG, comforme NBR 15751 e conforme item 7.33.10.7 da norma DIS-NOR-036?
D101: 4.4 - Distância de segurança
D103: =PAGE3.1!D39 -> 0 | E103: 4.4.1 - | F103: A subestação será montada de forma que atenda à distâncias de segurança do Ane-xo VIII da norma DIS-NOR-012?
D106: 4.5 - Entrada de Energia
D108: =PAGE3.1!D44 -> 0 | E108: 4.5.1 - | F108: Existe alguma medição ativa no local? | J108: Conta Contrato: | L108: =IF(ISBLANK(PAGE3.1!L44), "VAZIO", PAGE3.1!L44) -> VAZIO
F109: =PAGE3.1!F45 -> Obs.: A ligação da Subestação está condicionada à desativação da medição existente.
D111: =PAGE3.1!D47 -> 0 | E111: 4.5.2 - | F111: =PAGE3.1!F47 -> Preencher Item 3.5 sobre qual tipo de ambiente.
D118: Versão 1.3 | I118: Data da Impressão: | J118: =NOW() -> 2024-10-04T11:47:26.850
D120: DIAGRAMA UNIFILAR - LOCAÇÃO - DETALHES:
G127: =IFERROR(INDEX(PAGE11.1!H37:H43,MATCH(PAGE10.1!I42,PAGE11.1!G37:G43,0),),"") -> 
K128: =CONCATENATE(D52," ","A") -> A
F130: Fonte
F132: 13,8kV | L132: =G55 -> 
L133: =G52 -> Se Isolação PVC 70° C (mm²)
H134: Δ-Y Aterrada | L134: =G63 -> 
L135: =G60 -> Se Isolação EPR/XLPE 90° C (mm²)
H136: =CONCATENATE(I42," ","kVA") -> 0 kVA | L136: ="Eletroduto: " & J64 -> Eletroduto:
H137: 13,8kV - 380/220V
H138: 13,8/13,2/12,6
I153: Edificação
L161: UC Vizinho
C223: Versão 1.3 | H223: Data de Impressão: | J223: =NOW() -> 2024-10-04T11:47:26.860
H224: ART: | J224: =UPPER(PAGE1.1!G7) -> 
D225: ANOTAÇÕES / INFORMAÇÕES ADICIONAIS:
D227: =UPPER(IF(ISBLANK(PAGE4.1!D8),"NADA A DECLARAR.",PAGE4.1!D8)) -> NADA A DECLARAR.

Sheet PAGE8
A1: GERAL | B1: =A50 -> CDM - 1 | C1: =E50 -> CDM - 2 | D1: =E58 -> CDM - 3
A2: DIMENSIONAMENTO DOS COMPONENTES
A3: Entrada de Serviço
A4: Dem. Total: | B4: =IF(#REF!=B1,B50,IF(#REF!=C1,E51,IF(#REF!=D1,E59,(B31*B32)+J21+E36))) ->  | C4: kVA | D4: Entrada das UCs | E4: Condomínio | F4: 1F | G4: =IF(F4="3F",J21,J22) -> 0 | H4: =IF($G4=0,0,IF($F4="1F",INDEX([2]Tabelas!$P$4:$P$5,MATCH($G4,[2]Tabelas!$L$4:$L$5,1),),INDEX([2]Tabelas!$P$6:$P$9,MATCH($G4,[2]Tabelas!$N$6:$N$9,1),))) -> 0 | I4: =IF($G4=0,"",IF($F4="1F",INDEX([2]Tabelas!$Q$4:$R$5,MATCH($G4,[2]Tabelas!$L$4:$L$5,1),MATCH($J4,[2]Tabelas!$Q$3:$R$3,0)),INDEX([2]Tabelas!$Q$6:$R$9,MATCH($G4,[2]Tabelas!$N$6:$N$9,1),MATCH($J4,[2]Tabelas!$Q$3:$R$3,0)))) ->  | J4: XLPE
A5: Faixa: | B5: =IF($B$4>=[2]Tabelas!$A$5,INDEX([2]Tabelas!$A$5:$A$14,COUNTA([2]Tabelas!$A$5:$A$14)-COUNTIF([2]Tabelas!$A$5:$A$14,">"&$B$4),) & " < De ≤ " & INDEX([2]Tabelas!$B$5:$B$14,COUNTA([2]Tabelas!$A$5:$A$14)-COUNTIF([2]Tabelas!$A$5:$A$14,">"&$B$4),),[2]Tabelas!$A$5 & " < De ≤ " & [2]Tabelas!$B$5) ->  | E5: Tipo 1 | H5: =IF($G5=0,0,IF($F5="1F",INDEX([2]Tabelas!$P$4:$P$5,MATCH($G5,[2]Tabelas!$L$4:$L$5,1),),INDEX([2]Tabelas!$P$6:$P$9,MATCH($G5,[2]Tabelas!$N$6:$N$9,1),))) -> 0 | I5: =IF($G5=0,"",IF($F5="1F",INDEX([2]Tabelas!$Q$4:$R$5,MATCH($G5,[2]Tabelas!$L$4:$L$5,1),MATCH($J5,[2]Tabelas!$Q$3:$R$3,0)),INDEX([2]Tabelas!$Q$6:$R$9,MATCH($G5,[2]Tabelas!$N$6:$N$9,1),MATCH($J5,[2]Tabelas!$Q$3:$R$3,0)))) ->  | J5: XLPE
A6: Qtd Circuitos: | B6: =INDEX([2]Tabelas!$C$5:$C$14,MATCH($B$4,[2]Tabelas!$A$5:$A$14,1),) ->  | C6: =IF(B6=1,"Circuito","Circuitos") ->  | E6: Tipo 2 | H6: =IF($G6=0,0,IF($F6="1F",INDEX([2]Tabelas!$P$4:$P$5,MATCH($G6,[2]Tabelas!$L$4:$L$5,1),),INDEX([2]Tabelas!$P$6:$P$9,MATCH($G6,[2]Tabelas!$N$6:$N$9,1),))) -> 0 | I6: =IF($G6=0,"",IF($F6="1F",INDEX([2]Tabelas!$Q$4:$R$5,MATCH($G6,[2]Tabelas!$L$4:$L$5,1),MATCH($J6,[2]Tabelas!$Q$3:$R$3,0)),INDEX([2]Tabelas!$Q$6:$R$9,MATCH($G6,[2]Tabelas!$N$6:$N$9,1),MATCH($J6,[2]Tabelas!$Q$3:$R$3,0)))) ->  | J6: XLPE
A7: Disjuntor: | B7: =INDEX([2]Tabelas!$I$5:$I$14,COUNTA([2]Tabelas!$A$5:$A$14)-COUNTIF([2]Tabelas!$A$5:$A$14,">"&$B$4),) ->  | C7: A | E7: Tipo 3 | H7: =IF($G7=0,0,IF($F7="1F",INDEX([2]Tabelas!$P$4:$P$5,MATCH($G7,[2]Tabelas!$L$4:$L$5,1),),INDEX([2]Tabelas!$P$6:$P$9,MATCH($G7,[2]Tabelas!$N$6:$N$9,1),))) -> 0 | I7: =IF($G7=0,"",IF($F7="1F",INDEX([2]Tabelas!$Q$4:$R$5,MATCH($G7,[2]Tabelas!$L$4:$L$5,1),MATCH($J7,[2]Tabelas!$Q$3:$R$3,0)),INDEX([2]Tabelas!$Q$6:$R$9,MATCH($G7,[2]Tabelas!$N$6:$N$9,1),MATCH($J7,[2]Tabelas!$Q$3:$R$3,0)))) ->  | J7: XLPE
A8: Condutor: | B8: =INDEX([2]Tabelas!$D$5:$D$14,COUNTA([2]Tabelas!$A$5:$A$14)-COUNTIF([2]Tabelas!$A$5:$A$14,">"&$B$4),) ->  | C8: mm² | E8: Tipo 4 | H8: =IF($G8=0,0,IF($F8="1F",INDEX([2]Tabelas!$P$4:$P$5,MATCH($G8,[2]Tabelas!$L$4:$L$5,1),),INDEX([2]Tabelas!$P$6:$P$9,MATCH($G8,[2]Tabelas!$N$6:$N$9,1),))) -> 0 | I8: =IF($G8=0,"",IF($F8="1F",INDEX([2]Tabelas!$Q$4:$R$5,MATCH($G8,[2]Tabelas!$L$4:$L$5,1),MATCH($J8,[2]Tabelas!$Q$3:$R$3,0)),INDEX([2]Tabelas!$Q$6:$R$9,MATCH($G8,[2]Tabelas!$N$6:$N$9,1),MATCH($J8,[2]Tabelas!$Q$3:$R$3,0)))) ->  | J8: XLPE
A9: Barramento: | B9: =INDEX([2]Tabelas!$U$4:$U$15,MATCH($B$4,[2]Tabelas!$T$4:$T$15,1),) ->  | E9: Tipo 5 | H9: =IF($G9=0,0,IF($F9="1F",INDEX([2]Tabelas!$P$4:$P$5,MATCH($G9,[2]Tabelas!$L$4:$L$5,1),),INDEX([2]Tabelas!$P$6:$P$9,MATCH($G9,[2]Tabelas!$N$6:$N$9,1),))) -> 0 | I9: =IF($G9=0,"",IF($F9="1F",INDEX([2]Tabelas!$Q$4:$R$5,MATCH($G9,[2]Tabelas!$L$4:$L$5,1),MATCH($J9,[2]Tabelas!$Q$3:$R$3,0)),INDEX([2]Tabelas!$Q$6:$R$9,MATCH($G9,[2]Tabelas!$N$6:$N$9,1),MATCH($J9,[2]Tabelas!$Q$3:$R$3,0)))) ->  | J9: XLPE
A10: ATENDIMENTO AÉREO | E10: BLOCO | F10: Demanda | G10: Disjuntor | H10: Barramento | I10: Circuitos | J10: Ramal
A11: Ramal de Lig (XLPE): | C11: =INDEX([2]Tabelas!$AA$3:$AA$11,MATCH($B$4,[2]Tabelas!$Y$3:$Y$11,-1),) ->  | G11: =IF($F11=0,"",INDEX([2]Tabelas!$I$5:$I$14,COUNTA([2]Tabelas!$A$5:$A$14)-COUNTIF([2]Tabelas!$A$5:$A$14,">"&$F11),)) ->  | H11: =IF($F11=0,"",INDEX([2]Tabelas!$U$4:$U$15,MATCH($F11,[2]Tabelas!$T$4:$T$15,1),)) ->  | I11: =IF($F11=0,"",INDEX([2]Tabelas!$C$5:$C$14,MATCH($F11,[2]Tabelas!$A$5:$A$14,1),)) ->  | J11: =IF($F11=0,"",INDEX([2]Tabelas!$D$5:$D$14,COUNTA([2]Tabelas!$A$5:$A$14)-COUNTIF([2]Tabelas!$A$5:$A$14,">"&$F11),)) -> 
A12: Poste (DT): | C12: =INDEX([2]Tabelas!$AB$3:$AB$11,MATCH($B$4,[2]Tabelas!$Y$3:$Y$11,-1),) & " dAN" ->  | G12: =IF($F12=0,"",INDEX([2]Tabelas!$I$5:$I$14,COUNTA([2]Tabelas!$A$5:$A$14)-COUNTIF([2]Tabelas!$A$5:$A$14,">"&$F12),)) ->  | H12: =IF($F12=0,"",INDEX([2]Tabelas!$U$4:$U$15,MATCH($F12,[2]Tabelas!$T$4:$T$15,1),)) ->  | I12: =IF($F12=0,"",INDEX([2]Tabelas!$C$5:$C$14,MATCH($F12,[2]Tabelas!$A$5:$A$14,1),)) ->  | J12: =IF($F12=0,"",INDEX([2]Tabelas!$D$5:$D$14,COUNTA([2]Tabelas!$A$5:$A$14)-COUNTIF([2]Tabelas!$A$5:$A$14,">"&$F12),)) -> 
G13: =IF($F13=0,"",INDEX([2]Tabelas!$I$5:$I$14,COUNTA([2]Tabelas!$A$5:$A$14)-COUNTIF([2]Tabelas!$A$5:$A$14,">"&$F13),)) ->  | H13: =IF($F13=0,"",INDEX([2]Tabelas!$U$4:$U$15,MATCH($F13,[2]Tabelas!$T$4:$T$15,1),)) ->  | I13: =IF($F13=0,"",INDEX([2]Tabelas!$C$5:$C$14,MATCH($F13,[2]Tabelas!$A$5:$A$14,1),)) ->  | J13: =IF($F13=0,"",INDEX([2]Tabelas!$D$5:$D$14,COUNTA([2]Tabelas!$A$5:$A$14)-COUNTIF([2]Tabelas!$A$5:$A$14,">"&$F13),)) -> 
A14: CONDOMÍNIOS | G14: =IF($F14=0,"",INDEX([2]Tabelas!$I$5:$I$14,COUNTA([2]Tabelas!$A$5:$A$14)-COUNTIF([2]Tabelas!$A$5:$A$14,">"&$F14),)) ->  | H14: =IF($F14=0,"",INDEX([2]Tabelas!$U$4:$U$15,MATCH($F14,[2]Tabelas!$T$4:$T$15,1),)) ->  | I14: =IF($F14=0,"",INDEX([2]Tabelas!$C$5:$C$14,MATCH($F14,[2]Tabelas!$A$5:$A$14,1),)) ->  | J14: =IF($F14=0,"",INDEX([2]Tabelas!$D$5:$D$14,COUNTA([2]Tabelas!$A$5:$A$14)-COUNTIF([2]Tabelas!$A$5:$A$14,">"&$F14),)) -> 
A15: Tipo | B15: Demanda | C15: Caixa | G15: =IF($F15=0,"",INDEX([2]Tabelas!$I$5:$I$14,COUNTA([2]Tabelas!$A$5:$A$14)-COUNTIF([2]Tabelas!$A$5:$A$14,">"&$F15),)) ->  | H15: =IF($F15=0,"",INDEX([2]Tabelas!$U$4:$U$15,MATCH($F15,[2]Tabelas!$T$4:$T$15,1),)) ->  | I15: =IF($F15=0,"",INDEX([2]Tabelas!$C$5:$C$14,MATCH($F15,[2]Tabelas!$A$5:$A$14,1),)) ->  | J15: =IF($F15=0,"",INDEX([2]Tabelas!$D$5:$D$14,COUNTA([2]Tabelas!$A$5:$A$14)-COUNTIF([2]Tabelas!$A$5:$A$14,">"&$F15),)) -> 
A16: Externo | C16: =IF(B16=0,"",IF(B16<60.1,"Polifásica",IF(B16<=75,"F3","F4"))) ->  | G16: =IF($F16=0,"",INDEX([2]Tabelas!$I$5:$I$14,COUNTA([2]Tabelas!$A$5:$A$14)-COUNTIF([2]Tabelas!$A$5:$A$14,">"&$F16),)) ->  | H16: =IF($F16=0,"",INDEX([2]Tabelas!$U$4:$U$15,MATCH($F16,[2]Tabelas!$T$4:$T$15,1),)) ->  | I16: =IF($F16=0,"",INDEX([2]Tabelas!$C$5:$C$14,MATCH($F16,[2]Tabelas!$A$5:$A$14,1),)) ->  | J16: =IF($F16=0,"",INDEX([2]Tabelas!$D$5:$D$14,COUNTA([2]Tabelas!$A$5:$A$14)-COUNTIF([2]Tabelas!$A$5:$A$14,">"&$F16),)) -> 
A17: Dem. Total | B17: =SUM(C31+C35+C39+C43+H20+H24+H28+H32+H40) -> 0 | C17: kVA
A19: Demanda RESIDENCIAL - Área Útil | F19: Demanda CONDOMÍNIO - Carga Instalada
B20: Área | C20: Qtd | D20: Dem. | F20: Parcela a | H20: =SUM(H22:H23) -> 0 | I20: kVA | J20: Ds
A21: Tipo 1 | D21: =IFERROR(INDEX([2]Tabelas!$B$18:$B$56,MATCH(B21,[2]Tabelas!$A$18:$A$56,1),),0) -> 0 | F21: Pot (kVA) | G21: Fd | H21: Demanda | J21: =H20+H24+H28+H32+H40 -> 0
A22: Tipo 2 | D22: =IFERROR(INDEX([2]Tabelas!$B$18:$B$56,MATCH(B22,[2]Tabelas!$A$18:$A$56,1),),0) -> 0 | H22: =F22*G22 -> 0 | J22: =SUM(F22:F23)+SUMPRODUCT(F26:F27,G26:G27)+SUMPRODUCT(F30:F31,G30:G31)+SUMPRODUCT(F34:F39,H34:H39)*0.736+SUMPRODUCT(F42:F47,G42:G47) -> 0
A23: Tipo 3 | D23: =IFERROR(INDEX([2]Tabelas!$B$18:$B$56,MATCH(B23,[2]Tabelas!$A$18:$A$56,1),),0) -> 0 | H23: =F23*G23 -> 0 | J23: CI
A24: Tipo 4 | D24: =IFERROR(INDEX([2]Tabelas!$B$18:$B$56,MATCH(B24,[2]Tabelas!$A$18:$A$56,1),),0) -> 0 | F24: Parcela b | H24: =SUM(H26:H27) -> 0 | I24: kVA | J24: Caixa
A25: Tipo 5 | D25: =IFERROR(INDEX([2]Tabelas!$B$18:$B$56,MATCH(B25,[2]Tabelas!$A$18:$A$56,1),),0) -> 0 | F25: Pot (kVA) | G25: Qtd | H25: Demanda | I25: Fd | J25: =IF(J21>=60.1,"F3","") -> 
A26: Média / Total | B26: =IFERROR(SUMPRODUCT(B21:B25,C21:C25)/C26,0) -> 0 | C26: =SUM(C21:C25) -> 0 | D26: =IFERROR(INDEX([2]Tabelas!$B$18:$B$56,MATCH(B26,[2]Tabelas!$A$18:$A$56,1),),0) -> 0 | H26: =F26*G26*I26 -> 0 | I26: =IFERROR(INDEX([2]Tabelas!$T$20:$T$45,MATCH($G26,[2]Tabelas!$S$20:$S$45,1),),0) -> 0
H27: =F27*G27*I27 -> 0 | I27: =IFERROR(INDEX([2]Tabelas!$T$20:$T$45,MATCH($G27,[2]Tabelas!$S$20:$S$45,1),),0) -> 0
A28: Fc: | B28: =IFERROR(INDEX([2]Tabelas!$D$18:$D$77,MATCH(C26,[2]Tabelas!$C$18:$C$77,1),),0) -> 0 | F28: Parcela f | H28: =SUM(H30:H31) -> 0 | I28: kVA
A29: Dem. Total: | B29: =SUMPRODUCT(C21:C25,D21:D25) -> 0 | C29: =D26*C26 -> 0 | F29: Pot (kVA) | G29: Qtd | H29: Demanda | I29: Fd
H30: =F30*G30*I30 -> 0 | I30: =IFERROR(INDEX([2]Tabelas!$I$20:$I$27,MATCH($G30,[2]Tabelas!$H$20:$H$27,1),),0) -> 0
A31: Dr: | B31: =$B$29*$B$28 -> 0 | C31: =B31*B32 -> 0 | H31: =F31*G31*I31 -> 0 | I31: =IFERROR(INDEX([2]Tabelas!$I$20:$I$27,MATCH($G31,[2]Tabelas!$H$20:$H$27,1),),0) -> 0
A32: Fr: | B32: =INDEX([2]Tabelas!$F$18:$F$21,MATCH($B$31,[2]Tabelas!$E$18:$E$21,-1),) -> 1.5 | F32: Parcela g | H32: =SUMPRODUCT(H34:H39,I34:I39,J34:J39) -> 0 | I32: kVA
B33: =C29*B28 -> 0 | F33: Pot (cv) | G33: Fases | H33: Qtd | I33: Demanda | J33: Fd
A34: Demanda COMERCIAL - Carga Instalada | I34: =(IFERROR(IF(G34="1F",INDEX([2]Tabelas!$M$19:$M$31,MATCH($F34,[2]Tabelas!$K$19:$K$31,0),),INDEX([2]Tabelas!$Q$19:$Q$42,MATCH($F34,[2]Tabelas!$O$19:$O$42,0),)),$F34)/1000) -> 0 | J34: =IF(H34=0,0,IF(MAX($I$34:$I$39)<>I34,0.5,(1+0.5*(H34-1))/H34)) -> 0
A35: Parcela a | C35: =SUM(C37:C38) -> 0 | D35: kVA | E35: Dc | I35: =(IFERROR(IF(G35="1F",INDEX([2]Tabelas!$M$19:$M$31,MATCH($F35,[2]Tabelas!$K$19:$K$31,0),),INDEX([2]Tabelas!$Q$19:$Q$42,MATCH($F35,[2]Tabelas!$O$19:$O$42,0),)),$F35)/1000) -> 0 | J35: 0
A36: Pot (kVA) | B36: Fd | C36: Demanda | E36: =C35+C39+C43 -> 0 | I36: =(IFERROR(IF(G36="1F",INDEX([2]Tabelas!$M$19:$M$31,MATCH($F36,[2]Tabelas!$K$19:$K$31,0),),INDEX([2]Tabelas!$Q$19:$Q$42,MATCH($F36,[2]Tabelas!$O$19:$O$42,0),)),$F36)/1000) -> 0 | J36: 0
C37: =A37*B37 -> 0 | E37: =SUM(A37:A38)+SUMPRODUCT(A41:A42,B41:B42)+SUMPRODUCT(A45:A47,B45:B47) -> 0 | I37: =(IFERROR(IF(G37="1F",INDEX([2]Tabelas!$M$19:$M$31,MATCH($F37,[2]Tabelas!$K$19:$K$31,0),),INDEX([2]Tabelas!$Q$19:$Q$42,MATCH($F37,[2]Tabelas!$O$19:$O$42,0),)),$F37)/1000) -> 0 | J37: 0
C38: =A38*B38 -> 0 | E38: CI | I38: =(IFERROR(IF(G38="1F",INDEX([2]Tabelas!$M$19:$M$31,MATCH($F38,[2]Tabelas!$K$19:$K$31,0),),INDEX([2]Tabelas!$Q$19:$Q$42,MATCH($F38,[2]Tabelas!$O$19:$O$42,0),)),$F38)/1000) -> 0 | J38: 0
A39: Parcela f | C39: =SUM(C41:C42) -> 0 | D39: kVA | I39: =(IFERROR(IF(G39="1F",INDEX([2]Tabelas!$M$19:$M$31,MATCH($F39,[2]Tabelas!$K$19:$K$31,0),),INDEX([2]Tabelas!$Q$19:$Q$42,MATCH($F39,[2]Tabelas!$O$19:$O$42,0),)),$F39)/1000) -> 0 | J39: 0
A40: Pot (kVA) | B40: Qtd | C40: Demanda | D40: Fd | F40: OUTROS | H40: =SUM(I42:I47) -> 0 | I40: kVA
C41: =A41*B41*D41 -> 0 | D41: =IFERROR(INDEX([2]Tabelas!$I$20:$I$27,MATCH($B41,[2]Tabelas!$H$20:$H$27,1),),0) -> 0 | F41: Pot (kVA) | G41: Qtd | H41: Fd | I41: Demanda
C42: =A42*B42*D42 -> 0 | D42: =IFERROR(INDEX([2]Tabelas!$I$20:$I$27,MATCH($B42,[2]Tabelas!$H$20:$H$27,1),),0) -> 0 | I42: =F42*G42*H42 -> 0
A43: OUTROS | C43: =SUM(D45:D47) -> 0 | D43: kVA | I43: 0
A44: Pot (kVA) | B44: Qtd | C44: Fd | D44: Demanda | I44: 0
D45: =A45*B45*C45 -> 0 | I45: 0
D46: =A46*B46*C46 -> 0 | I46: 0
D47: =A47*B47*C47 -> 0 | I47: 0
A49: Fr | B49: =INDEX([2]Tabelas!$F$18:$F$21,MATCH(C49,[2]Tabelas!$E$18:$E$21,-1),) -> 1.5 | C49: =IFERROR(INDEX([2]Tabelas!$B$18:$B$56,MATCH(B63,[2]Tabelas!$A$18:$A$56,1),),0)*SUM(C52:C55)*C63 -> 0 | E49: Fr | F49: =INDEX([2]Tabelas!$F$18:$F$21,MATCH(E56,[2]Tabelas!$E$18:$E$21,-1),) -> 1.5
A50: CDM - 1 | B50: =A63+C49*B49 -> 0 | E50: CDM - 2 | F50: RESIDENCIAL | H50: COMERCIAL | J50: Condutor
A51: RESIDENCIAL | B51: Área | C51: Qtd | E51: =F49*E56+H56 -> 0 | F51: Área | G51: Qtd | H51: Demanda | I51: Qtd | J51: =INDEX([2]Tabelas!$C$5:$C$14,MATCH($E51,[2]Tabelas!$A$5:$A$14,1),)&"x"&INDEX([2]Tabelas!$D$5:$D$14,COUNTA([2]Tabelas!$A$5:$A$14)-COUNTIF([2]Tabelas!$A$5:$A$14,">"&$E51),) & "mm²" -> 
A52: Tipo 1 | E52: Tipo 1 | J52: Disjuntor
A53: Tipo 2 | E53: Tipo 2 | J53: =INDEX([2]Tabelas!$I$5:$I$14,COUNTA([2]Tabelas!$A$5:$A$14)-COUNTIF([2]Tabelas!$A$5:$A$14,">"&$E51),) & " A" -> 
A54: Tipo 3 | E54: Tipo 3 | J54: Barramento
A55: Tipo 4 | E55: Tipo 4 | J55: =INDEX([2]Tabelas!$U$4:$U$15,MATCH($E51,[2]Tabelas!$T$4:$T$15,1),) -> 19 x 3
A56: COMERCIAL | B56: Demanda | C56: Qtd | E56: =IFERROR(INDEX([2]Tabelas!$B$18:$B$56,MATCH(F56,[2]Tabelas!$A$18:$A$56,1),),0)*SUM(G52:G55)*G56 -> 0 | F56: =IFERROR(SUMPRODUCT(F52:F55,G52:G55)/SUM(G52:G55),0) -> 0 | G56: =IFERROR(INDEX([2]Tabelas!$D$18:$D$77,MATCH(SUM(G52:G55),[2]Tabelas!$C$18:$C$77,1),),0) -> 0 | H56: =SUMPRODUCT(H52:H55,I52:I55) -> 0
A57: Tipo 1 | E57: Fr | F57: =INDEX([2]Tabelas!$F$18:$F$21,MATCH(E64,[2]Tabelas!$E$18:$E$21,-1),) -> 1.5
A58: Tipo 2 | E58: CDM - 3 | F58: RESIDENCIAL | H58: COMERCIAL | J58: Condutor
A59: Tipo 3 | E59: =F57*E64+H64 -> 0 | F59: Área | G59: Qtd | H59: Demanda | I59: Qtd | J59: =INDEX([2]Tabelas!$C$5:$C$14,MATCH($E59,[2]Tabelas!$A$5:$A$14,1),)&"x"&INDEX([2]Tabelas!$D$5:$D$14,COUNTA([2]Tabelas!$A$5:$A$14)-COUNTIF([2]Tabelas!$A$5:$A$14,">"&$E59),) & "mm²" -> 
A60: Tipo 4 | E60: Tipo 1 | J60: Disjuntor
A61: Condutor | B61: =INDEX([2]Tabelas!$C$5:$C$14,MATCH($B50,[2]Tabelas!$A$5:$A$14,1),)&"x"&INDEX([2]Tabelas!$D$5:$D$14,COUNTA([2]Tabelas!$A$5:$A$14)-COUNTIF([2]Tabelas!$A$5:$A$14,">"&$B50),) & "mm²" ->  | C61: Barramento | D61: . | E61: Tipo 2 | J61: =INDEX([2]Tabelas!$I$5:$I$14,COUNTA([2]Tabelas!$A$5:$A$14)-COUNTIF([2]Tabelas!$A$5:$A$14,">"&$E59),) & " A" -> 
A62: Disjuntor | B62: =INDEX([2]Tabelas!$I$5:$I$14,COUNTA([2]Tabelas!$A$5:$A$14)-COUNTIF([2]Tabelas!$A$5:$A$14,">"&$B50),) & " A" ->  | C62: =INDEX([2]Tabelas!$U$4:$U$15,MATCH($B50,[2]Tabelas!$T$4:$T$15,1),) -> 19 x 3 | E62: Tipo 3 | J62: Barramento
A63: =SUMPRODUCT(B57:B60,C57:C60) -> 0 | B63: =IFERROR(SUMPRODUCT(B52:B55,C52:C55)/SUM(C52:C55),0) -> 0 | C63: =IFERROR(INDEX([2]Tabelas!$D$18:$D$77,MATCH(SUM(C52:C55),[2]Tabelas!$C$18:$C$77,1),),0) -> 0 | E63: Tipo 4 | J63: =INDEX([2]Tabelas!$U$4:$U$15,MATCH($E59,[2]Tabelas!$T$4:$T$15,1),) -> 19 x 3
E64: =IFERROR(INDEX([2]Tabelas!$B$18:$B$56,MATCH(F64,[2]Tabelas!$A$18:$A$56,1),),0)*SUM(G60:G63)*G64 -> 0 | F64: =IFERROR(SUMPRODUCT(F60:F63,G60:G63)/SUM(G60:G63),0) -> 0 | G64: =IFERROR(INDEX([2]Tabelas!$D$18:$D$77,MATCH(SUM(G60:G63),[2]Tabelas!$C$18:$C$77,1),),0) -> 0 | H64: =SUMPRODUCT(H60:H63,I60:I63) -> 0
A66: CÂMARA DE TRANSFORMAÇÃO - DETALHES | F66: SUBESTAÇÃO PARTICULAR
F67: POTÊNCIA | G67: 300 | I67: DISJUNTOR | J67: =INDEX([2]Tabelas!$AF$6:$AF$12,MATCH(G67,Pot_Trafo,0),1) -> 500
A68: Porta - Acesso de pessoas | C68: 2,10 x 1,05 | F68: CABO | G68: BITOLA | I68: DUTO PVC | J68: DUTO FG
F69: PVC | G69: =INDEX([2]Tabelas!$AG$6:$AG$12,MATCH(G67,Pot_Trafo,0),1) & " mm²" -> 2x[3x150(120)] mm² | I69: =INDEX([2]Tabelas!$AH$6:$AH$12,MATCH(G67,Pot_Trafo,0),1) & " mm" -> 2x75 mm | J69: =INDEX([2]Tabelas!$AI$6:$AI$12,MATCH(G67,Pot_Trafo,0),1) & " mm" -> 2x65 mm
F70: XLPE/EPR | G70: =INDEX([2]Tabelas!$AJ$6:$AJ$12,MATCH(G67,Pot_Trafo,0),1) & " mm²" -> 2x[3x95(70)] mm² | I70: =INDEX([2]Tabelas!$AK$6:$AK$12,MATCH(G67,Pot_Trafo,0),1) & " mm" -> 2x60 mm | J70: =INDEX([2]Tabelas!$AL$6:$AL$12,MATCH(G67,Pot_Trafo,0),1) & " mm" -> 2x50 mm

Sheet PAGE11.1 (hidden)
A1: DIMENSIONAMENTO ENTRADA DE SERVIÇO_ANEXO II - Tabela 02 (DIS-NOR-053) | K1: DIMENSIONAMENTO DAS ENTRADAS INDIVIDUAIS _ANEXO II - Tabela 03 (DIS-NOR-053) | T1: BARRAMENTO COBRE _ ANEXO II - Tabela 04 (DIS-NOR-053) | Y1: ATENDIMENTO AÉREO _ ANEXO II - Tabela 06 (DIS-NOR-053) | AD1: CONDUTOR DE BT_ANEXO I - Tabela 14 (DIS-NOR-036)
A2: Demanda Máxima da Edificação (kVA) | C2: Ramal de Entrada de Subterrâneo | K2: CAT | L2: CARGA INSTALADA | N2: DEMANDA | P2: DISJUNTOR | Q2: CABO | T2: Demanda | U2: Dimensões | W2: Corrente | Y2: Demanda | Z2: Tensão | AA2: Ramal de Ligação XLPE | AB2: Poste DT | AD2: Transformador | AF2: Proteção | AG2: Condutores de BT
C3: Quantidade Circuitos | D3: Seção (mm²) XLPE | E3: Duto PEAD | F3: Duto Aço | G3: Corrente Total (A) | H3: Disjuntor Geral | L3: De | M3: Até | N3: De | O3: Até | Q3: PVC | R3: XLPE | T3: (kVA) | U3: (mm) | V3: (pol) | W3: (A) | Y3: 135 | Z3: 380/220 | AA3: AL 3x70(70) | AB3: 200 | AG3: Em eletroduto rígido
A4: Mín | B4: Máx | H4: Carcaça | I4: Corrente | K4: M2 | L4: 0 | M4: 8 | P4: 40 | Q4: 10 | R4: 6 | T4: 0 | U4: 19 x 3 | W4: 208 | Y4: 115 | AA4: AL 3x70(70) | AB4: 200 | AD4: Tensão secundária (V) | AE4: Potência nominal | AF4: Disjuntor (A) | AG4: Isolação PVC 70º C (mm²) | AH4: Eletroduto diâmetro nominal (mm) | AJ4: Isolação EPR/XLPE 90º C (mm²) | AK4: Eletroduto diâmetro nominal (mm)
A5: 0 | B5: =A6-1 -> 46 | C5: 1 | D5: 25 | E5: 110 | F5: 100 | G5: 85 | H5: D100 | I5: 63 | K5: M3 | L5: 8.1 | M5: 15 | P5: 63 | Q5: 25 | R5: 16 | T5: 41 | U5: 25 x 3 | W5: 250 | Y5: 98 | AA5: AL 3x50(50) | AB5: 200 | AH5: PVC | AI5: AÇO | AK5: PVC | AL5: AÇO
A6: 47 | B6: =A7-1 -> 54 | C6: 1 | D6: 35 | E6: 110 | F6: 100 | G6: 103 | H6: D100 | I6: 80 | K6: T5 | N6: 0 | O6: 32 | P6: 50 | Q6: 25 | R6: 16 | T6: 75 | U6: 25 x 5 | W6: 340 | Y6: 75 | AA6: AL 3x35(35) | AB6: 200 | AD6: 380/220 | AE6: 30 | AF6: 50 | AG6: 3x10(10) | AH6: 32 | AI6: 25 | AJ6: 3x10(10) | AK6: 32 | AL6: 25
A7: 55 | B7: 67 | C7: 1 | D7: 50 | E7: 110 | F7: 100 | G7: 122 | H7: D100 | I7: 100 | K7: T6 | N7: 32.1 | O7: 42 | P7: 63 | Q7: 35 | R7: 25 | T7: 105 | U7: 30 x 5 | W7: 449 | Y7: 67 | AA7: AL 3x25(25) | AB7: 90 | AE7: 45 | AF7: 70 | AG7: 3x25(25) | AH7: 32 | AI7: 25 | AJ7: 3x16(16) | AK7: 32 | AL7: 25
A8: 68 | B8: 75 | C8: 1 | D8: 50 | E8: 110 | F8: 100 | G8: 122 | H8: D100 | I8: 100 | K8: T7 | N8: 42.1 | O8: 60 | P8: 100 | Q8: 70 | R8: 50 | T8: 208 | U8: 40 x 5 | W8: 460 | Y8: 54 | AA8: AL 3x25(25) | AB8: 90 | AE8: 75 | AF8: 125 | AG8: 3x50(25) | AH8: 40 | AI8: 32 | AJ8: 3x35(25) | AK8: 40 | AL8: 32
A9: 76 | B9: 98 | C9: 1 | D9: 95 | E9: 110 | F9: 100 | G9: 179 | H9: D225 | I9: 150 | K9: T8 | N9: 60.1 | O9: 75 | P9: 125 | Q9: 70 | R9: 70 | T9: 260 | U9: 50 x 5 | W9: 595 | Y9: 46 | AA9: AL 3x25(25) | AB9: 90 | AE9: 112.5 | AF9: 175 | AG9: 3x95(70) | AH9: 60 | AI9: 50 | AJ9: 3x70(35) | AK9: 50 | AL9: 40
A10: 99 | B10: 115 | C10: 2 | D10: 70 | E10: 110 | F10: 100 | G10: 242 | H10: D225 | I10: 175 | T10: 347 | U10: 40 x 10 | W10: 994 | Y10: 38 | AA10: AL 3x25(25) | AB10: 90 | AE10: 150 | AF10: 250 | AG10: 3x150(70) | AH10: 75 | AI10: 65 | AJ10: 3x95(50) | AK10: 60 | AL10: 50
A11: 116 | B11: 150 | C11: 1 | D11: 185 | E11: 110 | F11: 100 | G11: 258 | H11: D225 | I11: 200 | T11: 433 | U11: 50 x 10 | W11: 1312 | Y11: 0 | AA11: AL 3x25(25) | AB11: 90 | AE11: 225 | AF11: 350 | AG11: 3x240(120) | AH11: 85 | AI11: 80 | AJ11: 3x150(70) | AK11: 75 | AL11: 65
A12: 151 | B12: 191 | C12: 2 | D12: 150 | E12: 110 | F12: 100 | G12: 368 | H12: D400 | I12: 300 | T12: 520 | U12: 60 x 10 | W12: 1640 | AE12: 300 | AF12: 500 | AG12: 2x[3x150(120)] | AH12: 2x75 | AI12: 2x65 | AJ12: 2x[3x95(70)] | AK12: 2x60 | AL12: 2x50
A13: 192 | B13: 225 | C13: 2 | D13: 240 | E13: 110 | F13: 100 | G13: 477 | H13: D400 | I13: 350 | T13: 606 | U13: 80 x 10 | W13: 1968
A14: 225.1 | B14: 9999 | C14: -x- | D14: =C14 -> -x- | E14: =D14 -> -x- | F14: -x- | G14: -x- | H14: -x- | I14: -x- | T14: 779 | U14: 100 x 10 | W14: 2625
A15: DEMANDA DO APARTAMENTO | C15: FATOR DE COINCIDÊNCIA | E15: FATOR DE SEGURANÇA | T15: 952 | U15: 120 x 10 | W15: 3281
A16: AN I - Quadro 1 (DIS-NOR-053) | C16: AN I - Quadro 2 (DIS-NOR-053) | E16: AN I - Quadro 3 (DIS-NOR-053)
A17: Área Útil (m²) | B17: Demanda (kVA) | C17: Nº Aptos | D17: Fc | E17: Dr (kVA) | F17: Fr | H17: FD - Parcela f (Ar-cond) | K17: ANEXO I - Tabela 15 (DIS-NOR-030) | O17: ANEXO I - Tabela 16 (DIS-NOR-030) | S17: FD - Parcela b (Chuveiro)
A18: 0.01 | B18: 1 | C18: 1 | D18: 1 | E18: 999999 | F18: 1 | H18: ANEXO I - Tabela 10 (DIS-NOR-030) | K18: cv | L18: W | M18: VA | O18: cv | P18: W | Q18: VA | S18: ANEXO I - Tabela 5 (DIS-NOR-030)
A19: 41 | B19: 1.05 | C19: =C18+1 -> 2 | D19: 0.98 | E19: 100 | F19: 1.2 | H19: Qtd | I19: Fd | K19: 0.25 | L19: 420 | M19: 660 | O19: 0.33 | P19: 390 | Q19: 650 | S19: Qtd | T19: Fd
A20: =A19+5 -> 46 | B20: 1.16 | C20: =C19+1 -> 3 | D20: 0.973 | E20: 50 | F20: 1.3 | H20: 1 | I20: 1 | K20: 0.33 | L20: 510 | M20: 770 | O20: 0.5 | P20: 580 | Q20: 870 | S20: 1 | T20: 1
A21: =A20+5 -> 51 | B21: 1.26 | C21: 4 | D21: 0.97 | E21: 25 | F21: 1.5 | H21: =H20+10 -> 11 | I21: 0.9 | K21: 0.5 | L21: 790 | M21: 1180 | O21: 0.75 | P21: 830 | Q21: 1260 | S21: 2 | T21: 1
A22: 56 | B22: 1.36 | C22: 5 | D22: 0.968 | H22: =H21+10 -> 21 | I22: 0.82 | K22: 0.75 | L22: 900 | M22: 1340 | O22: 1 | P22: 1050 | Q22: 1520 | S22: 3 | T22: 0.84
A23: 61 | B23: 1.47 | C23: 6 | D23: 0.966 | H23: =H22+10 -> 31 | I23: 0.8 | K23: 1 | L23: 1140 | M23: 1560 | O23: 1.5 | P23: 1540 | Q23: 2170 | S23: 4 | T23: 0.76
A24: 66 | B24: 1.57 | C24: 7 | D24: 0.9657 | H24: =H23+10 -> 41 | I24: 0.77 | K24: 1.5 | L24: 1670 | M24: 2350 | O24: 2 | P24: 1950 | Q24: 2700 | S24: 5 | T24: 0.7
A25: 71 | B25: 1.67 | C25: 8 | D25: 0.965 | H25: =H24+10 -> 51 | I25: 0.75 | K25: 2 | L25: 2170 | M25: 2970 | O25: 3 | P25: 2950 | Q25: 4040 | S25: 6 | T25: 0.65
A26: 76 | B26: 1.76 | C26: 9 | D26: 0.9645 | H26: 76 | I26: =I25 -> 0.75 | K26: 3 | L26: 3220 | M26: 4070 | O26: 4 | P26: 3720 | Q26: 5030 | S26: 7 | T26: 0.6
A27: 81 | B27: 1.86 | C27: 10 | D27: 0.964 | H27: 101 | I27: =I26 -> 0.75 | K27: 5 | L27: 5110 | M27: 6160 | O27: 5 | P27: 4510 | Q27: 6020 | S27: 8 | T27: 0.57
A28: 86 | B28: 1.96 | C28: 11 | D28: 0.9473 | K28: 7.5 | L28: 7070 | M28: 8840 | O28: 7.5 | P28: 6570 | Q28: 8650 | S28: 9 | T28: 0.54
A29: 91 | B29: 2.06 | C29: 12 | D29: 0.9333 | K29: 10 | L29: 9310 | M29: 11640 | O29: 10 | P29: 8890 | Q29: 11540 | S29: 10 | T29: 0.52
A30: 96 | B30: 2.16 | C30: 13 | D30: 0.9215 | K30: 12.5 | L30: 11580 | M30: 14940 | O30: 12.5 | P30: 10850 | Q30: 14090 | S30: 11 | T30: 0.49
A31: 101 | B31: 2.35 | C31: 14 | D31: 0.9114 | K31: 15 | L31: 13720 | M31: 16940 | O31: 15 | P31: 12820 | Q31: 16650 | S31: 12 | T31: 0.48
A32: =A31+10 -> 111 | B32: 2.54 | C32: 15 | D32: 0.9027 | O32: 20 | P32: 17010 | Q32: 22100 | S32: 13 | T32: 0.46
A33: =A32+10 -> 121 | B33: 2.73 | C33: 16 | D33: 0.895 | O33: 25 | P33: 20920 | Q33: 25830 | S33: 14 | T33: 0.45
A34: 131 | B34: 2.91 | C34: 17 | D34: 0.8882 | O34: 30 | P34: 25030 | Q34: 30520 | S34: 15 | T34: 0.44
A35: 141 | B35: 3.06 | C35: 18 | D35: 0.8822 | O35: 40 | P35: 33380 | Q35: 39740 | S35: 16 | T35: 0.43
A36: 151 | B36: 3.28 | C36: 19 | D36: 0.8768 | O36: 50 | P36: 40930 | Q36: 48730 | S36: 17 | T36: 0.42
A37: 161 | B37: 3.47 | C37: 20 | D37: 0.872 | F37: 220/380 | G37: 30 | H37: 1H | I37: 50 | J37: 1.1/4” | O37: 60 | P37: 49420 | Q37: 58150 | S37: 18 | T37: 0.41
A38: 171 | B38: 3.65 | C38: 21 | D38: 0.859 | F38: 220/380 | G38: 45 | H38: 2H | I38: 70 | J38: 1.1/4” | O38: 75 | P38: 61440 | Q38: 72280 | S38: 19 | T38: 0.4
A39: 181 | B39: 3.83 | C39: 22 | D39: 0.8477 | F39: 220/380 | G39: 75 | H39: 2H | I39: 125 | J39: 1.1/2” | O39: 100 | P39: 81230 | Q39: 95560 | S39: 20 | T39: 0.4
A40: 191 | B40: 4.01 | C40: 23 | D40: 0.837 | F40: 220/380 | G40: 112.5 | H40: 3H | I40: 175 | J40: 2” | O40: 125 | P40: 100670 | Q40: 117050 | S40: 21 | T40: 0.39
A41: 201 | B41: 4.36 | C41: 24 | D41: 0.8275 | F41: 220/380 | G41: 150 | H41: 5H | I41: 250 | J41: 2.1/2” | O41: 150 | P41: 120090 | Q41: 141290 | S41: 22 | T41: 0.39
A42: =A41+20 -> 221 | B42: 4.72 | C42: 25 | D42: 0.8184 | F42: 220/380 | G42: 225 | H42: 6K | I42: 350 | J42: 2x2” | O42: 200 | P42: 161650 | Q42: 190180 | S42: 23 | T42: 0.39
A43: =A42+20 -> 241 | B43: 5.07 | C43: 26 | D43: 0.81 | F43: 220/380 | G43: 300 | H43: 6K | I43: 500 | J43: 2x2.1/2” | S43: 24 | T43: 0.38
A44: 261 | B44: 5.42 | C44: 27 | D44: 0.8026 | S44: 25 | T44: 0.38
A45: 281 | B45: 5.76 | C45: 28 | D45: 0.7954 | S45: 26 | T45: 0.38
A46: 301 | B46: 6.61 | C46: 29 | D46: 0.789
A47: =A46+50 -> 351 | B47: 7.45 | C47: 30 | D47: 0.7827
A48: =A47+50 -> 401 | B48: 8.28 | C48: 31 | D48: 0.7768
A49: 451 | B49: 9.1 | C49: 32 | D49: 0.7716
A50: 501 | B50: 9.91 | C50: 33 | D50: 0.7664
A51: 551 | B51: 10.71 | C51: 34 | D51: 0.7618
A52: =A51+50 -> 601 | B52: 11.51 | C52: 35 | D52: 0.7571
A53: 651 | B53: 12.3 | C53: 36 | D53: 0.7528
A54: =A53+50 -> 701 | B54: 13.86 | C54: 37 | D54: 0.7489
A55: =A54+100 -> 801 | B55: 15.4 | C55: 38 | D55: 0.7445
A56: =A55+100 -> 901 | B56: 16.93 | C56: 39 | D56: 0.7411
C57: =C56+1 -> 40 | D57: 0.738
C58: 41 | D58: 0.7346
C59: 42 | D59: 0.7317
C60: 43 | D60: 0.7289
C61: 44 | D61: 0.726
C62: 45 | D62: 0.7231
C63: 46 | D63: 0.7196
C64: 47 | D64: 0.7162
C65: 48 | D65: 0.7129
C66: 49 | D66: 0.7098
C67: 50 | D67: 0.7068
C68: 51 | D68: 0.7039
C69: 52 | D69: 0.7017
C70: 53 | D70: 0.6985
C71: 54 | D71: 0.696
C72: 55 | D72: 0.6935
C73: 56 | D73: 0.6911
C74: 57 | D74: 0.6888
C75: 58 | D75: 0.6866
C76: 59 | D76: 0.6844
C77: 60 | D77: 0.6823

Sheet BASE TRAFO (hidden)
A1: TRAFOS
A2: 30
A3: 45
A4: 75
A5: 112.5
A6: 150
A7: 225
A8: 300
